DepartmentFamily,Entity,Date,ExpenseType,ExpenseArea,Supplier,TransactionNumber,Amount,VATRegistrationNo
BIS,The Insolvency Service,01/07/2015,Office Supplies and Services,EXTERNAL AFFAIRS                                                                                    ,AMAZON.CO.UK LTD,BA0000288383,-79.00,727255821
BIS,The Insolvency Service,01/07/2015,Office Supplies and Services,INVESTIGATIONS & ENFORCEMENT                                                                        ,AMAZON.CO.UK LTD,BA0000288383,27.48,727255821
BIS,The Insolvency Service,01/07/2015,Accommodation,OFFICIAL RECEIVER SERVICES                                                                          ,AMAZON.CO.UK LTD,BA0000288383,48.92,727255821
BIS,The Insolvency Service,01/07/2015,Employee Related Costs,PEOPLE & CAPABILITY                                                                                 ,AMAZON.CO.UK LTD,BA0000288383,19.75,727255821
BIS,The Insolvency Service,01/07/2015,Employee Related Costs,PEOPLE & CAPABILITY                                                                                 ,AMAZON.CO.UK LTD,BA0000288383,107.76,727255821
BIS,The Insolvency Service,01/07/2015,Office Supplies and Services,OFFICIAL RECEIVER SERVICES                                                                          ,AMAZON.CO.UK LTD,BA0000288383,16.18,727255821
BIS,The Insolvency Service,01/07/2015,Computer and IT Systems,BUSINESS SERVICES DIRECTORATE                                                                       ,AMAZON.CO.UK LTD,BA0000288383,19.99,727255821
BIS,The Insolvency Service,01/07/2015,Postage,FINANCE AND COMMERCIAL,AMAZON.CO.UK LTD,BA0000288383,-66.36,727255821
BIS,The Insolvency Service,01/07/2015,Computer and IT Systems,BUSINESS SERVICES DIRECTORATE                                                                       ,AMAZON.CO.UK LTD,BA0000288383,-19.99,727255821
BIS,The Insolvency Service,01/07/2015,Office Supplies and Services,FINANCE AND COMMERCIAL,AMAZON.CO.UK LTD,BA0000288383,9.90,727255821
BIS,The Insolvency Service,01/07/2015,Travel and Subsistence,INVESTIGATIONS & ENFORCEMENT                                                                        ,APCOA CONNECT - FGW                                         ,BA0000288383,8.90,
BIS,The Insolvency Service,01/07/2015,Accommodation,INVESTIGATIONS & ENFORCEMENT                                                                        ,ARGOS RETAIL GROUP,BA0000288383,63.94,145899025
BIS,The Insolvency Service,01/07/2015,Insolvency Case Related Costs,OFFICIAL RECEIVER SERVICES                                                                          ,BRETONSIDE COPY                                             ,BA0000288383,7.80,
BIS,The Insolvency Service,01/07/2015,Postage,OFFICIAL RECEIVER SERVICES                                                                          ,CITY SPRINT UK LTD,BA0000288383,108.44,
BIS,The Insolvency Service,01/07/2015,Travel and Subsistence,FINANCE AND COMMERCIAL,Civil Service Club                                          ,BA0000288383,240.00,
BIS,The Insolvency Service,01/07/2015,Accommodation,BUSINESS SERVICES DIRECTORATE                                                                       ,CLOUDFARE                                                   ,BA0000288383,140.09,
BIS,The Insolvency Service,01/07/2015,Insolvency Case Related Costs,OFFICIAL RECEIVER SERVICES                                                                          ,COMBINED COURT                                              ,BA0000288383,280.00,
BIS,The Insolvency Service,01/07/2015,Travel and Subsistence,EXTERNAL AFFAIRS                                                                                    ,DOLLAR PHOTO CLUB                                           ,BA0000288383,2.60,
BIS,The Insolvency Service,01/07/2015,Computer and IT Systems,BUSINESS SERVICES DIRECTORATE                                                                       ,DOLLAR PHOTO CLUB                                           ,BA0000288383,1.81,
BIS,The Insolvency Service,01/07/2015,Computer and IT Systems,BUSINESS SERVICES DIRECTORATE                                                                       ,DOLLAR PHOTO CLUB                                           ,BA0000288383,0.22,
BIS,The Insolvency Service,01/07/2015,Accommodation,BUSINESS SERVICES DIRECTORATE                                                                       ,DOLLAR PHOTO CLUB                                           ,BA0000288383,3.85,
BIS,The Insolvency Service,01/07/2015,Travel and Subsistence,OFFICIAL RECEIVER SERVICES                                                                          ,ECML NEWCASTLE PARKING,BA0000288383,15.00,
BIS,The Insolvency Service,01/07/2015,Travel and Subsistence,INVESTIGATIONS & ENFORCEMENT                                                                        ,EXTERT                                                      ,BA0000288383,11.00,
BIS,The Insolvency Service,01/07/2015,Travel and Subsistence,INVESTIGATIONS & ENFORCEMENT                                                                        ,EXTERT                                                      ,BA0000288383,16.50,
BIS,The Insolvency Service,01/07/2015,Travel and Subsistence,INVESTIGATIONS & ENFORCEMENT                                                                        ,EXTERT                                                      ,BA0000288383,16.50,
BIS,The Insolvency Service,01/07/2015,Travel and Subsistence,INVESTIGATIONS & ENFORCEMENT                                                                        ,EXTERT                                                      ,BA0000288383,16.50,
BIS,The Insolvency Service,01/07/2015,Telecoms,BUSINESS SERVICES DIRECTORATE                                                                       ,FASTHOSTS INTERNET,BA0000288383,105.91,
BIS,The Insolvency Service,01/07/2015,Office Machinery,OFFICIAL RECEIVER SERVICES                                                                          ,FLEXIFORM BUSINESS FURNITURE LTD,BA0000288383,12.00,607217951
BIS,The Insolvency Service,01/07/2015,Conferences,INVESTIGATIONS & ENFORCEMENT                                                                        ,FORDBARLEYE                                                 ,BA0000288383,149.76,
BIS,The Insolvency Service,01/07/2015,Computer and IT Systems,BUSINESS SERVICES DIRECTORATE                                                                       ,GH GITHUB.COM                                               ,BA0000288383,65.65,
BIS,The Insolvency Service,01/07/2015,Travel and Subsistence,INVESTIGATIONS & ENFORCEMENT                                                                        ,GOV.UK/DART-CHARGE                                          ,BA0000288383,5.00,
BIS,The Insolvency Service,01/07/2015,Travel and Subsistence,OFFICIAL RECEIVER SERVICES                                                                          ,GREATER ANGLIA RAILWAY                                      ,BA0000288383,39.50,
BIS,The Insolvency Service,01/07/2015,Travel and Subsistence,OFFICIAL RECEIVER SERVICES                                                                          ,GREATER ANGLIA RAILWAY                                      ,BA0000288383,39.50,
BIS,The Insolvency Service,01/07/2015,Travel and Subsistence,INVESTIGATIONS & ENFORCEMENT                                                                        ,HINCKLEY ISLAND                                             ,BA0000288383,75.00,
BIS,The Insolvency Service,01/07/2015,Travel and Subsistence,FINANCE AND COMMERCIAL,HRG UK,BA0000288383,5.39,
BIS,The Insolvency Service,01/07/2015,Travel and Subsistence,FINANCE AND COMMERCIAL,HRG UK,BA0000288383,5.73,
BIS,The Insolvency Service,01/07/2015,Travel and Subsistence,FINANCE AND COMMERCIAL,HRG UK,BA0000288383,99.98,
BIS,The Insolvency Service,01/07/2015,Travel and Subsistence,FINANCE AND COMMERCIAL,HRG UK,BA0000288383,5.49,
BIS,The Insolvency Service,01/07/2015,Travel and Subsistence,FINANCE AND COMMERCIAL,HRG UK,BA0000288383,5.52,
BIS,The Insolvency Service,01/07/2015,Travel and Subsistence,FINANCE AND COMMERCIAL,HRG UK,BA0000288383,5.53,
BIS,The Insolvency Service,01/07/2015,Travel and Subsistence,FINANCE AND COMMERCIAL,HRG UK,BA0000288383,5.87,
BIS,The Insolvency Service,01/07/2015,Travel and Subsistence,FINANCE AND COMMERCIAL,HRG UK,BA0000288383,61.29,
BIS,The Insolvency Service,01/07/2015,Travel and Subsistence,FINANCE AND COMMERCIAL,HRG UK,BA0000288383,66.49,
BIS,The Insolvency Service,01/07/2015,Travel and Subsistence,FINANCE AND COMMERCIAL,HRG UK,BA0000288383,69.66,
BIS,The Insolvency Service,01/07/2015,Travel and Subsistence,FINANCE AND COMMERCIAL,HRG UK,BA0000288383,82.00,
BIS,The Insolvency Service,01/07/2015,Travel and Subsistence,FINANCE AND COMMERCIAL,HRG UK,BA0000288383,70.00,
BIS,The Insolvency Service,01/07/2015,Travel and Subsistence,FINANCE AND COMMERCIAL,HRG UK,BA0000288383,5.75,
BIS,The Insolvency Service,01/07/2015,Travel and Subsistence,FINANCE AND COMMERCIAL,HRG UK,BA0000288383,104.98,
BIS,The Insolvency Service,01/07/2015,Travel and Subsistence,FINANCE AND COMMERCIAL,HRG UK,BA0000288383,236.25,
BIS,The Insolvency Service,01/07/2015,Travel and Subsistence,FINANCE AND COMMERCIAL,HRG UK,BA0000288383,70.00,
BIS,The Insolvency Service,01/07/2015,Travel and Subsistence,FINANCE AND COMMERCIAL,HRG UK,BA0000288383,124.00,
BIS,The Insolvency Service,01/07/2015,Travel and Subsistence,FINANCE AND COMMERCIAL,HRG UK,BA0000288383,5.79,
BIS,The Insolvency Service,01/07/2015,Travel and Subsistence,FINANCE AND COMMERCIAL,HRG UK,BA0000288383,30.65,
BIS,The Insolvency Service,01/07/2015,Travel and Subsistence,FINANCE AND COMMERCIAL,HRG UK,BA0000288383,329.56,
BIS,The Insolvency Service,01/07/2015,Travel and Subsistence,FINANCE AND COMMERCIAL,HRG UK,BA0000288383,5.57,
BIS,The Insolvency Service,01/07/2015,Travel and Subsistence,FINANCE AND COMMERCIAL,HRG UK,BA0000288383,5.87,
BIS,The Insolvency Service,01/07/2015,Travel and Subsistence,FINANCE AND COMMERCIAL,HRG UK,BA0000288383,74.99,
BIS,The Insolvency Service,01/07/2015,Travel and Subsistence,FINANCE AND COMMERCIAL,HRG UK,BA0000288383,124.99,
BIS,The Insolvency Service,01/07/2015,Travel and Subsistence,FINANCE AND COMMERCIAL,HRG UK,BA0000288383,6.29,
BIS,The Insolvency Service,01/07/2015,Travel and Subsistence,FINANCE AND COMMERCIAL,HRG UK,BA0000288383,195.68,
BIS,The Insolvency Service,01/07/2015,Travel and Subsistence,FINANCE AND COMMERCIAL,HRG UK,BA0000288383,90.72,
BIS,The Insolvency Service,01/07/2015,Travel and Subsistence,FINANCE AND COMMERCIAL,HRG UK,BA0000288383,6.43,
BIS,The Insolvency Service,01/07/2015,Travel and Subsistence,FINANCE AND COMMERCIAL,HRG UK,BA0000288383,219.37,
BIS,The Insolvency Service,01/07/2015,Travel and Subsistence,FINANCE AND COMMERCIAL,HRG UK,BA0000288383,66.00,
BIS,The Insolvency Service,01/07/2015,Travel and Subsistence,OFFICIAL RECEIVER SERVICES                                                                          ,HRG UK,BA0000288383,51.99,
BIS,The Insolvency Service,01/07/2015,Travel and Subsistence,FINANCE AND COMMERCIAL,HRG UK,BA0000288383,6.36,
BIS,The Insolvency Service,01/07/2015,Travel and Subsistence,FINANCE AND COMMERCIAL,HRG UK,BA0000288383,144.98,
BIS,The Insolvency Service,01/07/2015,Travel and Subsistence,FINANCE AND COMMERCIAL,HRG UK,BA0000288383,205.98,
BIS,The Insolvency Service,01/07/2015,Travel and Subsistence,BUSINESS SERVICES DIRECTORATE                                                                       ,LANGAR HALL                                                 ,BA0000288383,180.00,
BIS,The Insolvency Service,01/07/2015,Travel and Subsistence,OFFICIAL RECEIVER SERVICES                                                                          ,LONDON & SOUTH EAS,BA0000288383,11.00,
BIS,The Insolvency Service,01/07/2015,Travel and Subsistence,OFFICIAL RECEIVER SERVICES                                                                          ,LONDON & SOUTH EAS,BA0000288383,11.00,
BIS,The Insolvency Service,01/07/2015,Travel and Subsistence,OFFICIAL RECEIVER SERVICES                                                                          ,LUL TICKET MACHINE,BA0000288383,12.00,
BIS,The Insolvency Service,01/07/2015,Travel and Subsistence,OFFICIAL RECEIVER SERVICES                                                                          ,LUL TICKET MACHINE,BA0000288383,12.00,
BIS,The Insolvency Service,01/07/2015,Travel and Subsistence,OFFICIAL RECEIVER SERVICES                                                                          ,LUL TICKET MACHINE,BA0000288383,12.00,
BIS,The Insolvency Service,01/07/2015,Travel and Subsistence,INVESTIGATIONS & ENFORCEMENT                                                                        ,LUL TICKET MACHINE,BA0000288383,50.00,
BIS,The Insolvency Service,01/07/2015,Travel and Subsistence,OFFICIAL RECEIVER SERVICES                                                                          ,LUL TICKET MACHINE,BA0000288383,12.00,
BIS,The Insolvency Service,01/07/2015,Travel and Subsistence,INVESTIGATIONS & ENFORCEMENT                                                                        ,LUL TICKET MACHINE,BA0000288383,9.60,
BIS,The Insolvency Service,01/07/2015,Travel and Subsistence,OFFICIAL RECEIVER SERVICES                                                                          ,LUL TICKET MACHINE,BA0000288383,17.00,
BIS,The Insolvency Service,01/07/2015,Travel and Subsistence,INVESTIGATIONS & ENFORCEMENT                                                                        ,LUL TICKET MACHINE,BA0000288383,20.00,
BIS,The Insolvency Service,01/07/2015,Travel and Subsistence,OFFICIAL RECEIVER SERVICES                                                                          ,LUL TICKET MACHINE,BA0000288383,12.00,
BIS,The Insolvency Service,01/07/2015,Travel and Subsistence,OFFICIAL RECEIVER SERVICES                                                                          ,LUL TICKET MACHINE,BA0000288383,12.00,
BIS,The Insolvency Service,01/07/2015,Travel and Subsistence,OFFICIAL RECEIVER SERVICES                                                                          ,LUL TICKET MACHINE,BA0000288383,12.00,
BIS,The Insolvency Service,01/07/2015,Travel and Subsistence,OFFICIAL RECEIVER SERVICES                                                                          ,LUL TICKET MACHINE,BA0000288383,9.60,
BIS,The Insolvency Service,01/07/2015,Travel and Subsistence,OFFICIAL RECEIVER SERVICES                                                                          ,LUL TICKET MACHINE,BA0000288383,12.00,
BIS,The Insolvency Service,01/07/2015,Travel and Subsistence,OFFICIAL RECEIVER SERVICES                                                                          ,LUL TICKET MACHINE,BA0000288383,12.00,
BIS,The Insolvency Service,01/07/2015,Travel and Subsistence,INVESTIGATIONS & ENFORCEMENT                                                                        ,LUL TICKET MACHINE,BA0000288383,20.00,
BIS,The Insolvency Service,01/07/2015,Travel and Subsistence,BUSINESS SERVICES DIRECTORATE                                                                       ,M6 TOLL,BA0000288383,4.00,
BIS,The Insolvency Service,01/07/2015,Travel and Subsistence,BUSINESS SERVICES DIRECTORATE                                                                       ,M6 TOLL,BA0000288383,4.00,
BIS,The Insolvency Service,01/07/2015,Computer and IT Systems,BUSINESS SERVICES DIRECTORATE                                                                       ,NAME-CHEAP.COM                                              ,BA0000288383,7.85,
BIS,The Insolvency Service,01/07/2015,Travel and Subsistence,INVESTIGATIONS & ENFORCEMENT                                                                        ,OYSTER AUTO TOP UP,BA0000288383,-30.00,
BIS,The Insolvency Service,01/07/2015,Travel and Subsistence,INVESTIGATIONS & ENFORCEMENT                                                                        ,OYSTER AUTO TOP UP,BA0000288383,-30.00,
BIS,The Insolvency Service,01/07/2015,Travel and Subsistence,EXTERNAL AFFAIRS                                                                                    ,OYSTER AUTO TOP UP,BA0000288383,20.00,
BIS,The Insolvency Service,01/07/2015,Travel and Subsistence,EXTERNAL AFFAIRS                                                                                    ,OYSTER AUTO TOP UP,BA0000288383,20.00,
BIS,The Insolvency Service,01/07/2015,Travel and Subsistence,OFFICIAL RECEIVER SERVICES                                                                          ,OYSTER AUTO TOP UP,BA0000288383,20.00,
BIS,The Insolvency Service,01/07/2015,Travel and Subsistence,INVESTIGATIONS & ENFORCEMENT                                                                        ,OYSTER AUTO TOP UP,BA0000288383,30.00,
BIS,The Insolvency Service,01/07/2015,Travel and Subsistence,OFFICIAL RECEIVER SERVICES                                                                          ,OYSTER AUTO TOP UP,BA0000288383,20.00,
BIS,The Insolvency Service,01/07/2015,Postage,OFFICIAL RECEIVER SERVICES                                                                          ,PAPERCHASE PRODUCTS                                         ,BA0000288383,37.80,
BIS,The Insolvency Service,01/07/2015,Travel and Subsistence,PEOPLE & CAPABILITY                                                                                 ,PHONEANDPAY.CO.UK                                           ,BA0000288383,10.34,
BIS,The Insolvency Service,01/07/2015,Employee Related Costs,PEOPLE & CAPABILITY                                                                                 ,POSTURITE (UK) LTD.,BA0000288383,162.18,
BIS,The Insolvency Service,01/07/2015,Travel and Subsistence,EXTERNAL AFFAIRS                                                                                    ,QUINCY                                                      ,BA0000288383,94.44,
BIS,The Insolvency Service,01/07/2015,Travel and Subsistence,OFFICIAL RECEIVER SERVICES                                                                          ,RINGOPARKBYPHONE                                            ,BA0000288383,4.70,
BIS,The Insolvency Service,01/07/2015,Travel and Subsistence,OFFICIAL RECEIVER SERVICES                                                                          ,RINGOPARKBYPHONE                                            ,BA0000288383,4.70,
BIS,The Insolvency Service,01/07/2015,Travel and Subsistence,OFFICIAL RECEIVER SERVICES                                                                          ,RINGOPARKBYPHONE                                            ,BA0000288383,4.70,
BIS,The Insolvency Service,01/07/2015,Travel and Subsistence,OFFICIAL RECEIVER SERVICES                                                                          ,RINGOPARKBYPHONE                                            ,BA0000288383,4.70,
BIS,The Insolvency Service,01/07/2015,Accommodation,OFFICIAL RECEIVER SERVICES                                                                          ,SAINSBURY'S S/MKT,BA0000288383,9.60,
BIS,The Insolvency Service,01/07/2015,Computer and IT Systems,FINANCE AND COMMERCIAL                                                                              ,SKY                                                         ,BA0000288383,20.50,
BIS,The Insolvency Service,01/07/2015,Accommodation,OFFICIAL RECEIVER SERVICES                                                                          ,THE BROOKS                                                  ,BA0000288383,1.30,
BIS,The Insolvency Service,01/07/2015,Employee Related Costs,PEOPLE & CAPABILITY                                                                                 ,THE DYSLEXIA SHOP LTD                                       ,BA0000288383,8.66,
BIS,The Insolvency Service,01/07/2015,Accommodation,OFFICIAL RECEIVER SERVICES                                                                          ,THE RANGE                                                   ,BA0000288383,2.79,
BIS,The Insolvency Service,01/07/2015,Travel and Subsistence,INVESTIGATIONS & ENFORCEMENT                                                                        ,TRAVELODGE,BA0000288383,194.56,
BIS,The Insolvency Service,01/07/2015,Travel and Subsistence,INVESTIGATIONS & ENFORCEMENT                                                                        ,TRAVELODGE,BA0000288383,97.28,
BIS,The Insolvency Service,01/07/2015,Insolvency Case Related Costs,INVESTIGATIONS & ENFORCEMENT                                                                        ,WAKEFIELD COUNCIL,BA0000288383,10.00,
BIS,The Insolvency Service,01/07/2015,Insolvency Case Related Costs,INVESTIGATIONS & ENFORCEMENT                                                                        ,WAKEFIELD COUNCIL,BA0000288383,40.00,
BIS,The Insolvency Service,01/07/2015,Insolvency Case Related Costs,INVESTIGATIONS & ENFORCEMENT                                                                        ,WAKEFIELD COUNCIL,BA0000288383,30.00,
BIS,The Insolvency Service,01/07/2015,Travel and Subsistence,PEOPLE & CAPABILITY                                                                                 ,WEST COAST TRAINS,BA0000288383,202.10,
BIS,The Insolvency Service,01/07/2015,Travel and Subsistence,PEOPLE & CAPABILITY                                                                                 ,WEST COAST TRAINS,BA0000288383,6.00,
BIS,The Insolvency Service,01/07/2015,Travel and Subsistence,PEOPLE & CAPABILITY                                                                                 ,WEST COAST TRAINS,BA0000288383,6.00,
BIS,The Insolvency Service,01/07/2015,Travel and Subsistence,PEOPLE & CAPABILITY                                                                                 ,WEST COAST TRAINS,BA0000288383,6.00,
BIS,The Insolvency Service,01/07/2015,Travel and Subsistence,PEOPLE & CAPABILITY                                                                                 ,WEST COAST TRAINS,BA0000288383,216.00,
BIS,The Insolvency Service,01/07/2015,Travel and Subsistence,PEOPLE & CAPABILITY                                                                                 ,WEST COAST TRAINS,BA0000288383,6.00,
BIS,The Insolvency Service,01/07/2015,Travel and Subsistence,PEOPLE & CAPABILITY                                                                                 ,WEST COAST TRAINS,BA0000288383,202.10,
BIS,The Insolvency Service,01/07/2015,Travel and Subsistence,PEOPLE & CAPABILITY                                                                                 ,WEST COAST TRAINS,BA0000288383,6.00,
BIS,The Insolvency Service,01/07/2015,Travel and Subsistence,PEOPLE & CAPABILITY                                                                                 ,WEST COAST TRAINS,BA0000288383,6.00,
BIS,The Insolvency Service,01/07/2015,Travel and Subsistence,PEOPLE & CAPABILITY                                                                                 ,WEST COAST TRAINS,BA0000288383,148.00,
BIS,The Insolvency Service,01/07/2015,Travel and Subsistence,OFFICIAL RECEIVER SERVICES                                                                          ,WEST COAST TRAINS,BA0000288383,16.00,
BIS,The Insolvency Service,01/07/2015,Travel and Subsistence,PEOPLE & CAPABILITY                                                                                 ,WEST COAST TRAINS,BA0000288383,12.00,
BIS,The Insolvency Service,01/07/2015,Postage,OFFICIAL RECEIVER SERVICES                                                                          ,WH SMITH,BA0000288383,45.36,
BIS,The Insolvency Service,01/07/2015,Accommodation,OFFICIAL RECEIVER SERVICES                                                                          ,Wilko Retail Ltd                                            ,BA0000288383,8.00,
BIS,The Insolvency Service,01/07/2015,Accommodation,OFFICIAL RECEIVER SERVICES                                                                          ,WWW.BESAFEALARMS.COM                                        ,BA0000288383,12.47,
BIS,The Insolvency Service,01/07/2015,Employee Related Costs,PEOPLE & CAPABILITY                                                                                 ,WWW.ERONOMICS.CO.UK                                         ,BA0000288383,31.49,
BIS,The Insolvency Service,01/07/2015,Travel and Subsistence,BUSINESS SERVICES DIRECTORATE                                                                       ,WWW.HXPAYMENTS.COM,BA0000288383,36.99,
BIS,The Insolvency Service,01/07/2015,Travel and Subsistence,BUSINESS SERVICES DIRECTORATE                                                                       ,WWW.HXPAYMENTS.COM,BA0000288383,27.99,
BIS,The Insolvency Service,01/07/2015,Travel and Subsistence,BUSINESS SERVICES DIRECTORATE                                                                       ,WWW.HXPAYMENTS.COM,BA0000288383,31.99,
BIS,The Insolvency Service,01/07/2015,Insolvency Case Related Costs,OFFICIAL RECEIVER SERVICES                                                                          ,WWW.ICO.GOV.UK                                              ,BA0000288383,35.00,
BIS,The Insolvency Service,01/07/2015,Employee Related Costs,PEOPLE & CAPABILITY                                                                                 ,WWW.NISBETS.COM                                             ,BA0000288383,95.98,
BIS,The Insolvency Service,01/07/2015,Accommodation,OFFICIAL RECEIVER SERVICES                                                                          ,WWW.POSTPACK.CO.UK                                          ,BA0000288383,84.87,
BIS,The Insolvency Service,01/07/2015,Office Supplies and Services,BUSINESS SERVICES DIRECTORATE                                                                       ,WWW.THESUPERMARKETONLINE,BA0000288383,40.03,
BIS,The Insolvency Service,08/07/2015,Training Costs,PEOPLE & CAPABILITY                                                                                 ,CAPITA BUSINESS SERVICES LTD,BA0000287946,119.99,618184140
BIS,The Insolvency Service,08/07/2015,Training Costs,PEOPLE & CAPABILITY                                                                                 ,CAPITA BUSINESS SERVICES LTD,BA0000287947,119.99,618184140
BIS,The Insolvency Service,08/07/2015,Training Costs,PEOPLE & CAPABILITY                                                                                 ,CAPITA BUSINESS SERVICES LTD,BA0000287948,119.99,618184140
BIS,The Insolvency Service,08/07/2015,Training Costs,FINANCE AND COMMERCIAL                                                                              ,CAPITA BUSINESS SERVICES LTD,BA0000287949,170.00,618184140
BIS,The Insolvency Service,08/07/2015,Training Costs,PEOPLE & CAPABILITY                                                                                 ,CAPITA BUSINESS SERVICES LTD,BA0000287956,119.99,618184140
BIS,The Insolvency Service,08/07/2015,Travel and Subsistence,BUSINESS SERVICES DIRECTORATE                                                                       ,CITY CABS (EDINBURGH) LTD,BA0000287957,202.72,270679436
BIS,The Insolvency Service,08/07/2015,Postage,INVESTIGATIONS & ENFORCEMENT                                                                        ,TNT UK LTD,BA0000287958,52.98,354715057
BIS,The Insolvency Service,08/07/2015,Insolvency Case Related Costs,OFFICIAL RECEIVER SERVICES                                                                          ,INSOLVENCY SERVICE,BA0000287959,40.00,
BIS,The Insolvency Service,08/07/2015,Training Costs,FINANCE AND COMMERCIAL                                                                              ,CAPITA BUSINESS SERVICES LTD,BA0000288023,"3,673.00",618184140
BIS,The Insolvency Service,08/07/2015,Accounting and Banking,BUSINESS SERVICES DIRECTORATE                                                                       ,LLOYDS TSB BANK,BA0000288025,"5,000.00",244155576
BIS,The Insolvency Service,08/07/2015,Telecoms,BUSINESS SERVICES DIRECTORATE                                                                       ,SYNTEC LTD                                                  ,BA0000288026,355.96,810309963
BIS,The Insolvency Service,08/07/2015,Travel and Subsistence,BUSINESS SERVICES DIRECTORATE                                                                       ,Staff Payment,BA0000288049,35.00,
BIS,The Insolvency Service,08/07/2015,Travel and Subsistence,BUSINESS SERVICES DIRECTORATE                                                                       ,Staff Payment,BA0000288049,3.85,
BIS,The Insolvency Service,08/07/2015,Travel and Subsistence,BUSINESS SERVICES DIRECTORATE                                                                       ,Staff Payment,BA0000288049,15.00,
BIS,The Insolvency Service,08/07/2015,Office Supplies and Services,BUSINESS SERVICES DIRECTORATE                                                                       ,Staff Payment,BA0000288049,5.00,
BIS,The Insolvency Service,08/07/2015,Travel and Subsistence,INVESTIGATIONS & ENFORCEMENT                                                                        ,Staff Payment,BA0000288049,4.60,
BIS,The Insolvency Service,08/07/2015,Travel and Subsistence,INVESTIGATIONS & ENFORCEMENT                                                                        ,Staff Payment,BA0000288049,8.60,
BIS,The Insolvency Service,08/07/2015,Travel and Subsistence,PEOPLE & CAPABILITY                                                                                 ,Staff Payment,BA0000288049,8.90,
BIS,The Insolvency Service,08/07/2015,Travel and Subsistence,PEOPLE & CAPABILITY                                                                                 ,Staff Payment,BA0000288049,2.50,
BIS,The Insolvency Service,08/07/2015,Travel and Subsistence,BUSINESS SERVICES DIRECTORATE                                                                       ,Staff Payment,BA0000288049,153.90,
BIS,The Insolvency Service,08/07/2015,Travel and Subsistence,BUSINESS SERVICES DIRECTORATE                                                                       ,Staff Payment,BA0000288049,40.95,
BIS,The Insolvency Service,08/07/2015,Travel and Subsistence,INVESTIGATIONS & ENFORCEMENT                                                                        ,Staff Payment,BA0000288049,7.20,
BIS,The Insolvency Service,08/07/2015,Travel and Subsistence,INVESTIGATIONS & ENFORCEMENT                                                                        ,Staff Payment,BA0000288049,25.65,
BIS,The Insolvency Service,08/07/2015,Travel and Subsistence,INVESTIGATIONS & ENFORCEMENT                                                                        ,Staff Payment,BA0000288049,6.50,
BIS,The Insolvency Service,08/07/2015,Travel and Subsistence,INVESTIGATIONS & ENFORCEMENT                                                                        ,Staff Payment,BA0000288049,66.25,
BIS,The Insolvency Service,08/07/2015,Travel and Subsistence,OFFICIAL RECEIVER SERVICES                                                                          ,Staff Payment,BA0000288049,6.40,
BIS,The Insolvency Service,08/07/2015,Travel and Subsistence,OFFICIAL RECEIVER SERVICES                                                                          ,Staff Payment,BA0000288049,39.60,
BIS,The Insolvency Service,08/07/2015,Travel and Subsistence,OFFICIAL RECEIVER SERVICES                                                                          ,Staff Payment,BA0000288049,10.00,
BIS,The Insolvency Service,08/07/2015,Travel and Subsistence,INVESTIGATIONS & ENFORCEMENT                                                                        ,Staff Payment,BA0000288049,6.60,
BIS,The Insolvency Service,08/07/2015,Travel and Subsistence,INVESTIGATIONS & ENFORCEMENT                                                                        ,Staff Payment,BA0000288049,6.00,
BIS,The Insolvency Service,08/07/2015,Travel and Subsistence,BUSINESS SERVICES DIRECTORATE                                                                       ,Staff Payment,BA0000288049,5.00,
BIS,The Insolvency Service,08/07/2015,Travel and Subsistence,BUSINESS SERVICES DIRECTORATE                                                                       ,Staff Payment,BA0000288049,4.61,
BIS,The Insolvency Service,08/07/2015,Travel and Subsistence,FINANCE AND COMMERCIAL                                                                              ,Staff Payment,BA0000288049,45.69,
BIS,The Insolvency Service,08/07/2015,Travel and Subsistence,INVESTIGATIONS & ENFORCEMENT                                                                        ,Staff Payment,BA0000288049,16.95,
BIS,The Insolvency Service,08/07/2015,Travel and Subsistence,INVESTIGATIONS & ENFORCEMENT                                                                        ,Staff Payment,BA0000288049,5.00,
BIS,The Insolvency Service,08/07/2015,Travel and Subsistence,OFFICIAL RECEIVER SERVICES                                                                          ,Staff Payment,BA0000288049,5.00,
BIS,The Insolvency Service,08/07/2015,Travel and Subsistence,OFFICIAL RECEIVER SERVICES                                                                          ,Staff Payment,BA0000288049,4.49,
BIS,The Insolvency Service,08/07/2015,Travel and Subsistence,PEOPLE & CAPABILITY                                                                                 ,Staff Payment,BA0000288049,3.00,
BIS,The Insolvency Service,08/07/2015,Travel and Subsistence,PEOPLE & CAPABILITY                                                                                 ,Staff Payment,BA0000288049,17.32,
BIS,The Insolvency Service,08/07/2015,Insolvency Case Related Costs,INVESTIGATIONS & ENFORCEMENT                                                                        ,Staff Payment,BA0000288049,19.00,
BIS,The Insolvency Service,08/07/2015,Travel and Subsistence,INVESTIGATIONS & ENFORCEMENT                                                                        ,Staff Payment,BA0000288050,15.70,
BIS,The Insolvency Service,08/07/2015,Travel and Subsistence,OFFICIAL RECEIVER SERVICES                                                                          ,Staff Payment,BA0000288050,50.00,
BIS,The Insolvency Service,08/07/2015,Travel and Subsistence,INVESTIGATIONS & ENFORCEMENT                                                                        ,Staff Payment,BA0000288050,4.00,
BIS,The Insolvency Service,08/07/2015,Travel and Subsistence,INVESTIGATIONS & ENFORCEMENT                                                                        ,Staff Payment,BA0000288050,16.20,
BIS,The Insolvency Service,08/07/2015,Travel and Subsistence,INVESTIGATIONS & ENFORCEMENT                                                                        ,Staff Payment,BA0000288050,4.00,
BIS,The Insolvency Service,08/07/2015,Travel and Subsistence,INVESTIGATIONS & ENFORCEMENT                                                                        ,Staff Payment,BA0000288050,17.10,
BIS,The Insolvency Service,08/07/2015,Travel and Subsistence,INVESTIGATIONS & ENFORCEMENT                                                                        ,Staff Payment,BA0000288050,0.90,
BIS,The Insolvency Service,08/07/2015,Travel and Subsistence,INVESTIGATIONS & ENFORCEMENT                                                                        ,Staff Payment,BA0000288050,25.20,
BIS,The Insolvency Service,08/07/2015,Travel and Subsistence,INVESTIGATIONS & ENFORCEMENT                                                                        ,Staff Payment,BA0000288050,7.20,
BIS,The Insolvency Service,08/07/2015,Travel and Subsistence,INVESTIGATIONS & ENFORCEMENT                                                                        ,Staff Payment,BA0000288050,53.10,
BIS,The Insolvency Service,08/07/2015,Travel and Subsistence,OFFICIAL RECEIVER SERVICES                                                                          ,Staff Payment,BA0000288050,28.00,
BIS,The Insolvency Service,08/07/2015,Travel and Subsistence,OFFICIAL RECEIVER SERVICES                                                                          ,Staff Payment,BA0000288050,13.50,
BIS,The Insolvency Service,08/07/2015,Travel and Subsistence,INVESTIGATIONS & ENFORCEMENT                                                                        ,Staff Payment,BA0000288050,11.50,
BIS,The Insolvency Service,08/07/2015,Travel and Subsistence,FINANCE AND COMMERCIAL,Staff Payment,BA0000288050,13.38,
BIS,The Insolvency Service,08/07/2015,Travel and Subsistence,OFFICIAL RECEIVER SERVICES                                                                          ,Staff Payment,BA0000288050,8.99,
BIS,The Insolvency Service,08/07/2015,Travel and Subsistence,OFFICIAL RECEIVER SERVICES                                                                          ,Staff Payment,BA0000288050,36.38,
BIS,The Insolvency Service,08/07/2015,Employee Related Costs,PEOPLE & CAPABILITY                                                                                 ,Staff Payment,BA0000288050,112.50,
BIS,The Insolvency Service,08/07/2015,Travel and Subsistence,INVESTIGATIONS & ENFORCEMENT                                                                        ,Staff Payment,BA0000288051,38.00,
BIS,The Insolvency Service,08/07/2015,Travel and Subsistence,PEOPLE & CAPABILITY                                                                                 ,Staff Payment,BA0000288051,138.00,
BIS,The Insolvency Service,08/07/2015,Travel and Subsistence,PEOPLE & CAPABILITY                                                                                 ,Staff Payment,BA0000288051,92.00,
BIS,The Insolvency Service,08/07/2015,Travel and Subsistence,PEOPLE & CAPABILITY                                                                                 ,Staff Payment,BA0000288051,138.00,
BIS,The Insolvency Service,08/07/2015,Travel and Subsistence,FINANCE AND COMMERCIAL                                                                              ,Staff Payment,BA0000288051,16.30,
BIS,The Insolvency Service,08/07/2015,Travel and Subsistence,FINANCE AND COMMERCIAL                                                                              ,Staff Payment,BA0000288051,27.90,
BIS,The Insolvency Service,08/07/2015,Travel and Subsistence,INVESTIGATIONS & ENFORCEMENT                                                                        ,Staff Payment,BA0000288051,52.50,
BIS,The Insolvency Service,08/07/2015,Travel and Subsistence,INVESTIGATIONS & ENFORCEMENT                                                                        ,Staff Payment,BA0000288051,108.40,
BIS,The Insolvency Service,08/07/2015,Travel and Subsistence,INVESTIGATIONS & ENFORCEMENT                                                                        ,Staff Payment,BA0000288051,4.60,
BIS,The Insolvency Service,08/07/2015,Travel and Subsistence,OFFICIAL RECEIVER SERVICES                                                                          ,Staff Payment,BA0000288051,1.00,
BIS,The Insolvency Service,08/07/2015,Travel and Subsistence,OFFICIAL RECEIVER SERVICES                                                                          ,Staff Payment,BA0000288051,2.50,
BIS,The Insolvency Service,08/07/2015,Travel and Subsistence,PROJECTS                                                                                            ,Staff Payment,BA0000288051,140.00,
BIS,The Insolvency Service,08/07/2015,Travel and Subsistence,BUSINESS SERVICES DIRECTORATE                                                                       ,Staff Payment,BA0000288051,104.60,
BIS,The Insolvency Service,08/07/2015,Travel and Subsistence,FINANCE AND COMMERCIAL                                                                              ,Staff Payment,BA0000288051,88.20,
BIS,The Insolvency Service,08/07/2015,Travel and Subsistence,INVESTIGATIONS & ENFORCEMENT                                                                        ,Staff Payment,BA0000288051,8.34,
BIS,The Insolvency Service,08/07/2015,Travel and Subsistence,INVESTIGATIONS & ENFORCEMENT                                                                        ,Staff Payment,BA0000288051,46.80,
BIS,The Insolvency Service,08/07/2015,Travel and Subsistence,INVESTIGATIONS & ENFORCEMENT                                                                        ,Staff Payment,BA0000288051,28.80,
BIS,The Insolvency Service,08/07/2015,Travel and Subsistence,INVESTIGATIONS & ENFORCEMENT                                                                        ,Staff Payment,BA0000288051,20.70,
BIS,The Insolvency Service,08/07/2015,Travel and Subsistence,INVESTIGATIONS & ENFORCEMENT                                                                        ,Staff Payment,BA0000288051,22.00,
BIS,The Insolvency Service,08/07/2015,Travel and Subsistence,INVESTIGATIONS & ENFORCEMENT                                                                        ,Staff Payment,BA0000288051,155.70,
BIS,The Insolvency Service,08/07/2015,Travel and Subsistence,INVESTIGATIONS & ENFORCEMENT                                                                        ,Staff Payment,BA0000288051,101.35,
BIS,The Insolvency Service,08/07/2015,Travel and Subsistence,OFFICIAL RECEIVER SERVICES                                                                          ,Staff Payment,BA0000288051,44.10,
BIS,The Insolvency Service,08/07/2015,Travel and Subsistence,OFFICIAL RECEIVER SERVICES                                                                          ,Staff Payment,BA0000288051,20.50,
BIS,The Insolvency Service,08/07/2015,Travel and Subsistence,OFFICIAL RECEIVER SERVICES                                                                          ,Staff Payment,BA0000288051,20.00,
BIS,The Insolvency Service,08/07/2015,Travel and Subsistence,OFFICIAL RECEIVER SERVICES                                                                          ,Staff Payment,BA0000288051,23.40,
BIS,The Insolvency Service,08/07/2015,Travel and Subsistence,OFFICIAL RECEIVER SERVICES                                                                          ,Staff Payment,BA0000288051,81.00,
BIS,The Insolvency Service,08/07/2015,Travel and Subsistence,OFFICIAL RECEIVER SERVICES                                                                          ,Staff Payment,BA0000288051,179.55,
BIS,The Insolvency Service,08/07/2015,Travel and Subsistence,OFFICIAL RECEIVER SERVICES                                                                          ,Staff Payment,BA0000288051,44.10,
BIS,The Insolvency Service,08/07/2015,Travel and Subsistence,OFFICIAL RECEIVER SERVICES                                                                          ,Staff Payment,BA0000288051,1.50,
BIS,The Insolvency Service,08/07/2015,Travel and Subsistence,OFFICIAL RECEIVER SERVICES                                                                          ,Staff Payment,BA0000288051,13.95,
BIS,The Insolvency Service,08/07/2015,Travel and Subsistence,OFFICIAL RECEIVER SERVICES                                                                          ,Staff Payment,BA0000288051,7.50,
BIS,The Insolvency Service,08/07/2015,Travel and Subsistence,OFFICIAL RECEIVER SERVICES                                                                          ,Staff Payment,BA0000288051,171.00,
BIS,The Insolvency Service,08/07/2015,Travel and Subsistence,PEOPLE & CAPABILITY                                                                                 ,Staff Payment,BA0000288051,23.40,
BIS,The Insolvency Service,08/07/2015,Travel and Subsistence,PEOPLE & CAPABILITY                                                                                 ,Staff Payment,BA0000288051,17.60,
BIS,The Insolvency Service,08/07/2015,Travel and Subsistence,PEOPLE & CAPABILITY                                                                                 ,Staff Payment,BA0000288051,4.90,
BIS,The Insolvency Service,08/07/2015,Travel and Subsistence,PEOPLE & CAPABILITY                                                                                 ,Staff Payment,BA0000288051,6.30,
BIS,The Insolvency Service,08/07/2015,Travel and Subsistence,BUSINESS SERVICES DIRECTORATE                                                                       ,Staff Payment,BA0000288051,10.00,
BIS,The Insolvency Service,08/07/2015,Travel and Subsistence,FINANCE AND COMMERCIAL                                                                              ,Staff Payment,BA0000288051,5.00,
BIS,The Insolvency Service,08/07/2015,Travel and Subsistence,FINANCE AND COMMERCIAL                                                                              ,Staff Payment,BA0000288051,7.00,
BIS,The Insolvency Service,08/07/2015,Travel and Subsistence,OFFICIAL RECEIVER SERVICES                                                                          ,Staff Payment,BA0000288051,5.80,
BIS,The Insolvency Service,08/07/2015,Travel and Subsistence,OFFICIAL RECEIVER SERVICES                                                                          ,Staff Payment,BA0000288051,10.00,
BIS,The Insolvency Service,08/07/2015,Travel and Subsistence,PEOPLE & CAPABILITY                                                                                 ,Staff Payment,BA0000288051,9.00,
BIS,The Insolvency Service,08/07/2015,Travel and Subsistence,BUSINESS SERVICES DIRECTORATE                                                                       ,Staff Payment,BA0000288051,24.55,
BIS,The Insolvency Service,08/07/2015,Travel and Subsistence,BUSINESS SERVICES DIRECTORATE                                                                       ,Staff Payment,BA0000288051,24.30,
BIS,The Insolvency Service,08/07/2015,Travel and Subsistence,BUSINESS SERVICES DIRECTORATE                                                                       ,Staff Payment,BA0000288051,26.44,
BIS,The Insolvency Service,08/07/2015,Travel and Subsistence,FINANCE AND COMMERCIAL                                                                              ,Staff Payment,BA0000288051,20.30,
BIS,The Insolvency Service,08/07/2015,Travel and Subsistence,FINANCE AND COMMERCIAL                                                                              ,Staff Payment,BA0000288051,20.00,
BIS,The Insolvency Service,08/07/2015,Travel and Subsistence,INVESTIGATIONS & ENFORCEMENT                                                                        ,Staff Payment,BA0000288051,7.49,
BIS,The Insolvency Service,08/07/2015,Travel and Subsistence,INVESTIGATIONS & ENFORCEMENT                                                                        ,Staff Payment,BA0000288051,5.00,
BIS,The Insolvency Service,08/07/2015,Travel and Subsistence,INVESTIGATIONS & ENFORCEMENT                                                                        ,Staff Payment,BA0000288051,4.60,
BIS,The Insolvency Service,08/07/2015,Travel and Subsistence,INVESTIGATIONS & ENFORCEMENT                                                                        ,Staff Payment,BA0000288051,9.55,
BIS,The Insolvency Service,08/07/2015,Travel and Subsistence,INVESTIGATIONS & ENFORCEMENT                                                                        ,Staff Payment,BA0000288051,5.00,
BIS,The Insolvency Service,08/07/2015,Travel and Subsistence,INVESTIGATIONS & ENFORCEMENT                                                                        ,Staff Payment,BA0000288051,7.55,
BIS,The Insolvency Service,08/07/2015,Travel and Subsistence,INVESTIGATIONS & ENFORCEMENT                                                                        ,Staff Payment,BA0000288051,10.00,
BIS,The Insolvency Service,08/07/2015,Travel and Subsistence,OFFICIAL RECEIVER SERVICES                                                                          ,Staff Payment,BA0000288051,24.90,
BIS,The Insolvency Service,08/07/2015,Travel and Subsistence,OFFICIAL RECEIVER SERVICES                                                                          ,Staff Payment,BA0000288051,28.64,
BIS,The Insolvency Service,08/07/2015,Travel and Subsistence,OFFICIAL RECEIVER SERVICES                                                                          ,Staff Payment,BA0000288051,13.50,
BIS,The Insolvency Service,08/07/2015,Travel and Subsistence,OFFICIAL RECEIVER SERVICES                                                                          ,Staff Payment,BA0000288051,5.00,
BIS,The Insolvency Service,08/07/2015,Travel and Subsistence,OFFICIAL RECEIVER SERVICES                                                                          ,Staff Payment,BA0000288051,5.00,
BIS,The Insolvency Service,08/07/2015,Travel and Subsistence,OFFICIAL RECEIVER SERVICES                                                                          ,Staff Payment,BA0000288051,3.60,
BIS,The Insolvency Service,08/07/2015,Travel and Subsistence,OFFICIAL RECEIVER SERVICES                                                                          ,Staff Payment,BA0000288051,4.02,
BIS,The Insolvency Service,08/07/2015,Travel and Subsistence,OFFICIAL RECEIVER SERVICES                                                                          ,Staff Payment,BA0000288051,5.00,
BIS,The Insolvency Service,08/07/2015,Travel and Subsistence,PEOPLE & CAPABILITY                                                                                 ,Staff Payment,BA0000288051,63.41,
BIS,The Insolvency Service,08/07/2015,Travel and Subsistence,PEOPLE & CAPABILITY                                                                                 ,Staff Payment,BA0000288051,57.52,
BIS,The Insolvency Service,08/07/2015,Travel and Subsistence,PEOPLE & CAPABILITY                                                                                 ,Staff Payment,BA0000288051,58.11,
BIS,The Insolvency Service,08/07/2015,Travel and Subsistence,PEOPLE & CAPABILITY                                                                                 ,Staff Payment,BA0000288051,10.00,
BIS,The Insolvency Service,08/07/2015,Travel and Subsistence,PEOPLE & CAPABILITY                                                                                 ,Staff Payment,BA0000288051,8.75,
BIS,The Insolvency Service,08/07/2015,Insolvency Case Related Costs,INVESTIGATIONS & ENFORCEMENT                                                                        ,Staff Payment,BA0000288051,14.00,
BIS,The Insolvency Service,08/07/2015,Insolvency Case Related Costs,INVESTIGATIONS & ENFORCEMENT                                                                        ,Staff Payment,BA0000288051,7.00,
BIS,The Insolvency Service,08/07/2015,Employee Related Costs,PEOPLE & CAPABILITY                                                                                 ,Staff Payment,BA0000288051,90.00,
BIS,The Insolvency Service,08/07/2015,Employee Related Costs,PEOPLE & CAPABILITY                                                                                 ,Staff Payment,BA0000288051,115.00,
BIS,The Insolvency Service,08/07/2015,Office Supplies and Services,BUSINESS SERVICES DIRECTORATE                                                                       ,Staff Payment,BA0000288051,30.71,
BIS,The Insolvency Service,08/07/2015,Postage,INVESTIGATIONS & ENFORCEMENT                                                                        ,TNT UK LTD,BA0000288052,28.74,354715057
BIS,The Insolvency Service,08/07/2015,Postage,BUSINESS SERVICES DIRECTORATE                                                                       ,TNT UK LTD,BA0000288053,17.16,354715057
BIS,The Insolvency Service,08/07/2015,Office Supplies and Services,OFFICIAL RECEIVER SERVICES                                                                          ,THOMSON REUTERS - SWEET & MAXWELL LTD,BA0000288054,630.00,900548743
BIS,The Insolvency Service,08/07/2015,Telecoms,INFORMATION TECHNOLOGY                                                                              ,VODAFONE - CABLE & WIRELESS COMMUNICATIONS,BA0000288055,241.57,232303710
BIS,The Insolvency Service,08/07/2015,Telecoms,INFORMATION TECHNOLOGY                                                                              ,VODAFONE - CABLE & WIRELESS COMMUNICATIONS,BA0000288056,242.38,232303710
BIS,The Insolvency Service,08/07/2015,Telecoms,INFORMATION TECHNOLOGY                                                                              ,VODAFONE - CABLE & WIRELESS COMMUNICATIONS,BA0000288057,240.64,232303710
BIS,The Insolvency Service,08/07/2015,Telecoms,INFORMATION TECHNOLOGY                                                                              ,VODAFONE - CABLE & WIRELESS COMMUNICATIONS,BA0000288058,240.69,232303710
BIS,The Insolvency Service,08/07/2015,Employee Related Costs,PEOPLE & CAPABILITY                                                                                 ,Staff Payment,BA0000288059,249.00,
BIS,The Insolvency Service,08/07/2015,Training Costs,PEOPLE & CAPABILITY                                                                                 ,CAPITA BUSINESS SERVICES LTD,BA0000288060,136.00,618184140
BIS,The Insolvency Service,08/07/2015,Telecoms,INFORMATION TECHNOLOGY                                                                              ,VODAFONE - CABLE & WIRELESS COMMUNICATIONS,BA0000288061,"4,024.26",232303710
BIS,The Insolvency Service,08/07/2015,Telecoms,INFORMATION TECHNOLOGY                                                                              ,VODAFONE - CABLE & WIRELESS COMMUNICATIONS,BA0000288062,"7,581.12",232303710
BIS,The Insolvency Service,08/07/2015,Telecoms,INFORMATION TECHNOLOGY                                                                              ,VODAFONE - CABLE & WIRELESS COMMUNICATIONS,BA0000288063,"5,362.04",232303710
BIS,The Insolvency Service,08/07/2015,Postage,FINANCE AND COMMERCIAL                                                                              ,TNT UK LTD,BA0000288064,89.64,354715057
BIS,The Insolvency Service,08/07/2015,Training Costs,PEOPLE & CAPABILITY                                                                                 ,PINSENT MASONS                                              ,BA0000288065,360.00,125463034
BIS,The Insolvency Service,08/07/2015,Accommodation,FINANCE AND COMMERCIAL                                                                              ,JENNOR (UK) LTD                                             ,BA0000288066,"7,063.62",2895107059
BIS,The Insolvency Service,08/07/2015,Accommodation,ESTATES,SCOTTISH POWER,BA0000288067,561.67,659372008
BIS,The Insolvency Service,08/07/2015,Investigation and Enforcement Costs,INVESTIGATIONS & ENFORCEMENT                                                                        ,APL ACCOUNTANTS LLP,BA0000288068,"1,764.15",854660115
BIS,The Insolvency Service,08/07/2015,Investigation and Enforcement Costs,INVESTIGATIONS & ENFORCEMENT                                                                        ,APL ACCOUNTANTS LLP,BA0000288069,"1,247.55",854660115
BIS,The Insolvency Service,08/07/2015,Insolvency Case Related Costs,OFFICIAL RECEIVER SERVICES                                                                          ,INSOLVENCY SERVICE,BA0000288070,40.00,
BIS,The Insolvency Service,09/07/2015,Investigation and Enforcement Costs,OFFICIAL RECEIVER SERVICES                                                                          ,HMCTS,BA0000288071,480.00,
BIS,The Insolvency Service,09/07/2015,Investigation and Enforcement Costs,OFFICIAL RECEIVER SERVICES                                                                          ,HMCTS,BA0000288089,480.00,
BIS,The Insolvency Service,10/07/2015,Telecoms,INFORMATION TECHNOLOGY                                                                              ,KINGSTON COMMUNICATIONS,BA0000288082,85.79,647235137
BIS,The Insolvency Service,10/07/2015,Telecoms,INFORMATION TECHNOLOGY                                                                              ,KINGSTON COMMUNICATIONS,BA0000288083,87.59,647235137
BIS,The Insolvency Service,10/07/2015,Telecoms,INFORMATION TECHNOLOGY                                                                              ,KINGSTON COMMUNICATIONS,BA0000288084,92.00,647235137
BIS,The Insolvency Service,10/07/2015,Telecoms,INFORMATION TECHNOLOGY                                                                              ,KINGSTON COMMUNICATIONS,BA0000288085,92.00,647235137
BIS,The Insolvency Service,10/07/2015,Insolvency Case Related Costs,INVESTIGATIONS & ENFORCEMENT                                                                        ,COMPANIES HOUSE,BA0000288086,466.00,GD255
BIS,The Insolvency Service,10/07/2015,Postage,INVESTIGATIONS & ENFORCEMENT                                                                        ,TNT UK LTD,BA0000288087,25.41,354715057
BIS,The Insolvency Service,10/07/2015,Accommodation,ESTATES,CBRE Ltd,BA0000288090,488.84,
BIS,The Insolvency Service,10/07/2015,Postage,INVESTIGATIONS & ENFORCEMENT                                                                        ,TNT UK LTD,BA0000288091,24.88,354715057
BIS,The Insolvency Service,10/07/2015,Insolvency Case Related Costs,INVESTIGATIONS & ENFORCEMENT                                                                        ,COMPANIES HOUSE,BA0000288092,742.00,GD255
BIS,The Insolvency Service,10/07/2015,Insolvency Case Related Costs,OFFICIAL RECEIVER SERVICES                                                                          ,COMPANIES HOUSE,BA0000288093,87.00,GD255
BIS,The Insolvency Service,10/07/2015,Insolvency Case Related Costs,OFFICIAL RECEIVER SERVICES                                                                          ,COMPANIES HOUSE,BA0000288094,22.00,GD255
BIS,The Insolvency Service,10/07/2015,Insolvency Case Related Costs,OFFICIAL RECEIVER SERVICES                                                                          ,COMPANIES HOUSE,BA0000288095,134.00,GD255
BIS,The Insolvency Service,10/07/2015,Insolvency Case Related Costs,OFFICIAL RECEIVER SERVICES                                                                          ,FRANK G. BOWEN LTD,BA0000288096,78.00,238504366
BIS,The Insolvency Service,10/07/2015,Accommodation,OFFICIAL RECEIVER SERVICES                                                                          ,FRANK G. BOWEN LTD,BA0000288097,78.00,238504366
BIS,The Insolvency Service,10/07/2015,Insolvency Case Related Costs,INVESTIGATIONS & ENFORCEMENT                                                                        ,COMPANIES HOUSE,BA0000288098,21.00,GD255
BIS,The Insolvency Service,10/07/2015,Training Costs,PEOPLE & CAPABILITY                                                                                 ,INDUSTRY & PARLIAMENT TRUST                                 ,BA0000288099,999.00,
BIS,The Insolvency Service,10/07/2015,Training Costs,PEOPLE & CAPABILITY                                                                                 ,INDUSTRY & PARLIAMENT TRUST                                 ,BA0000288100,999.00,
BIS,The Insolvency Service,10/07/2015,Employee Related Costs,PEOPLE & CAPABILITY                                                                                 ,RIGHT MANAGEMENT WORKPLACE WELLNESS                         ,BA0000288101,546.34,
BIS,The Insolvency Service,10/07/2015,Agency Workers,FINANCE AND COMMERCIAL,BROOK STREET (UK) LTD,BA0000288107,"53,609.32",
BIS,The Insolvency Service,10/07/2015,Investigation and Enforcement Costs,INVESTIGATIONS & ENFORCEMENT                                                                        ,FTI CONSULTING LLP,BA0000288110,"1,038.55",867255490
BIS,The Insolvency Service,10/07/2015,Accommodation,ESTATES,CBRE LIMITED,BA0000288111,"2,986.86",
BIS,The Insolvency Service,10/07/2015,Accommodation,ESTATES,CBRE LIMITED,BA0000288112,"2,747.84",
BIS,The Insolvency Service,10/07/2015,Accommodation,ESTATES,CBRE LIMITED,BA0000288113,"1,496.26",
BIS,The Insolvency Service,10/07/2015,Accommodation,ESTATES,CBRE LIMITED,BA0000288114,"2,969.76",
BIS,The Insolvency Service,10/07/2015,Accommodation,ESTATES,CBRE LIMITED,BA0000288115,"1,193.90",
BIS,The Insolvency Service,10/07/2015,Insolvency Case Related Costs,INVESTIGATIONS & ENFORCEMENT                                                                        ,COMPANIES HOUSE,BA0000288116,"1,497.00",GD255
BIS,The Insolvency Service,10/07/2015,Investigation and Enforcement Costs,INVESTIGATIONS & ENFORCEMENT                                                                        ,BOND DICKINSON                                              ,BA0000288117,"74,060.00",123392627
BIS,The Insolvency Service,10/07/2015,Computer and IT Systems,CUSTOMER AND COMMUNICATIONS                                                                         ,BANG COMMUNICATIONS                                         ,BA0000288119,"8,640.00",569978254
BIS,The Insolvency Service,10/07/2015,Accommodation,ESTATES,CBRE Ltd,BA0000288121,"1,067.82",
BIS,The Insolvency Service,10/07/2015,Accommodation,ESTATES,CBRE LIMITED,BA0000288122,"10,496.64",
BIS,The Insolvency Service,10/07/2015,Accommodation,ESTATES,CBRE LIMITED,BA0000288123,"10,566.30",
BIS,The Insolvency Service,10/07/2015,Accommodation,ESTATES,BLACKPOOL COUNCIL,BA0000288124,854.40,155820857
BIS,The Insolvency Service,10/07/2015,Insolvency Case Related Costs,OFFICIAL RECEIVER SERVICES                                                                          ,INSOLVENCY SERVICE,BA0000288125,711.60,
BIS,The Insolvency Service,10/07/2015,Accommodation,FINANCE AND COMMERCIAL,BRITISH GAS BUSINESS,BA0000288126,169.84,684966762
BIS,The Insolvency Service,10/07/2015,Accommodation,FINANCE AND COMMERCIAL,BRITISH GAS BUSINESS,BA0000288126,274.56,684966762
BIS,The Insolvency Service,10/07/2015,Accommodation,FINANCE AND COMMERCIAL,BRITISH GAS BUSINESS,BA0000288126,949.70,684966762
BIS,The Insolvency Service,10/07/2015,Accommodation,FINANCE AND COMMERCIAL,BRITISH GAS BUSINESS,BA0000288126,"2,033.84",684966762
BIS,The Insolvency Service,10/07/2015,Accommodation,FINANCE AND COMMERCIAL,BRITISH GAS BUSINESS,BA0000288126,"6,342.44",684966762
BIS,The Insolvency Service,10/07/2015,Accommodation,ESTATES,CBRE LIMITED,BA0000288130,"3,565.24",
BIS,The Insolvency Service,10/07/2015,Accommodation,ESTATES,CBRE LIMITED,BA0000288131,"1,193.90",
BIS,The Insolvency Service,10/07/2015,Accommodation,ESTATES,CBRE LIMITED,BA0000288132,"1,342.44",
BIS,The Insolvency Service,10/07/2015,Travel and Subsistence,BUSINESS SERVICES DIRECTORATE                                                                       ,Staff Payment,BA0000288135,9.20,
BIS,The Insolvency Service,10/07/2015,Travel and Subsistence,FINANCE AND COMMERCIAL                                                                              ,Staff Payment,BA0000288135,95.88,
BIS,The Insolvency Service,10/07/2015,Travel and Subsistence,BUSINESS SERVICES DIRECTORATE                                                                       ,Staff Payment,BA0000288135,32.00,
BIS,The Insolvency Service,10/07/2015,Travel and Subsistence,BUSINESS SERVICES DIRECTORATE                                                                       ,Staff Payment,BA0000288135,335.70,
BIS,The Insolvency Service,10/07/2015,Travel and Subsistence,CUSTOMER AND COMMUNICATIONS                                                                         ,Staff Payment,BA0000288135,72.45,
BIS,The Insolvency Service,10/07/2015,Travel and Subsistence,OFFICIAL RECEIVER SERVICES                                                                          ,Staff Payment,BA0000288135,95.40,
BIS,The Insolvency Service,10/07/2015,Travel and Subsistence,BUSINESS SERVICES DIRECTORATE                                                                       ,Staff Payment,BA0000288135,71.75,
BIS,The Insolvency Service,10/07/2015,Travel and Subsistence,BUSINESS SERVICES DIRECTORATE                                                                       ,Staff Payment,BA0000288135,73.23,
BIS,The Insolvency Service,10/07/2015,Accommodation,OFFICIAL RECEIVER SERVICES                                                                          ,Staff Payment,BA0000288135,17.99,
BIS,The Insolvency Service,10/07/2015,Travel and Subsistence,INVESTIGATIONS & ENFORCEMENT                                                                        ,Staff Payment,BA0000288135,97.28,
BIS,The Insolvency Service,10/07/2015,Travel and Subsistence,PROJECTS                                                                                            ,Staff Payment,BA0000288135,20.00,
BIS,The Insolvency Service,10/07/2015,Travel and Subsistence,BUSINESS SERVICES DIRECTORATE                                                                       ,Staff Payment,BA0000288135,2.50,
BIS,The Insolvency Service,10/07/2015,Travel and Subsistence,BUSINESS SERVICES DIRECTORATE                                                                       ,Staff Payment,BA0000288135,19.20,
BIS,The Insolvency Service,10/07/2015,Travel and Subsistence,BUSINESS SERVICES DIRECTORATE                                                                       ,Staff Payment,BA0000288135,17.50,
BIS,The Insolvency Service,10/07/2015,Travel and Subsistence,FINANCE AND COMMERCIAL                                                                              ,Staff Payment,BA0000288135,4.10,
BIS,The Insolvency Service,10/07/2015,Travel and Subsistence,FINANCE AND COMMERCIAL                                                                              ,Staff Payment,BA0000288135,25.50,
BIS,The Insolvency Service,10/07/2015,Travel and Subsistence,FINANCE AND COMMERCIAL,Staff Payment,BA0000288135,41.30,
BIS,The Insolvency Service,10/07/2015,Travel and Subsistence,INVESTIGATIONS & ENFORCEMENT                                                                        ,Staff Payment,BA0000288135,20.85,
BIS,The Insolvency Service,10/07/2015,Travel and Subsistence,INVESTIGATIONS & ENFORCEMENT                                                                        ,Staff Payment,BA0000288135,9.60,
BIS,The Insolvency Service,10/07/2015,Travel and Subsistence,INVESTIGATIONS & ENFORCEMENT                                                                        ,Staff Payment,BA0000288135,39.80,
BIS,The Insolvency Service,10/07/2015,Travel and Subsistence,OFFICIAL RECEIVER SERVICES                                                                          ,Staff Payment,BA0000288135,2.50,
BIS,The Insolvency Service,10/07/2015,Travel and Subsistence,OFFICIAL RECEIVER SERVICES                                                                          ,Staff Payment,BA0000288135,16.80,
BIS,The Insolvency Service,10/07/2015,Travel and Subsistence,OFFICIAL RECEIVER SERVICES                                                                          ,Staff Payment,BA0000288135,14.40,
BIS,The Insolvency Service,10/07/2015,Travel and Subsistence,OFFICIAL RECEIVER SERVICES                                                                          ,Staff Payment,BA0000288135,3.10,
BIS,The Insolvency Service,10/07/2015,Travel and Subsistence,OFFICIAL RECEIVER SERVICES                                                                          ,Staff Payment,BA0000288135,24.90,
BIS,The Insolvency Service,10/07/2015,Travel and Subsistence,OFFICIAL RECEIVER SERVICES                                                                          ,Staff Payment,BA0000288135,24.90,
BIS,The Insolvency Service,10/07/2015,Travel and Subsistence,OFFICIAL RECEIVER SERVICES                                                                          ,Staff Payment,BA0000288135,3.05,
BIS,The Insolvency Service,10/07/2015,Travel and Subsistence,PROJECTS                                                                                            ,Staff Payment,BA0000288135,8.10,
BIS,The Insolvency Service,10/07/2015,Travel and Subsistence,PROJECTS                                                                                            ,Staff Payment,BA0000288135,16.00,
BIS,The Insolvency Service,10/07/2015,Travel and Subsistence,BUSINESS SERVICES DIRECTORATE                                                                       ,Staff Payment,BA0000288135,3.50,
BIS,The Insolvency Service,10/07/2015,Travel and Subsistence,BUSINESS SERVICES DIRECTORATE                                                                       ,Staff Payment,BA0000288135,48.60,
BIS,The Insolvency Service,10/07/2015,Travel and Subsistence,BUSINESS SERVICES DIRECTORATE                                                                       ,Staff Payment,BA0000288135,12.00,
BIS,The Insolvency Service,10/07/2015,Travel and Subsistence,BUSINESS SERVICES DIRECTORATE                                                                       ,Staff Payment,BA0000288135,24.20,
BIS,The Insolvency Service,10/07/2015,Travel and Subsistence,BUSINESS SERVICES DIRECTORATE                                                                       ,Staff Payment,BA0000288135,135.00,
BIS,The Insolvency Service,10/07/2015,Travel and Subsistence,BUSINESS SERVICES DIRECTORATE                                                                       ,Staff Payment,BA0000288135,33.00,
BIS,The Insolvency Service,10/07/2015,Travel and Subsistence,BUSINESS SERVICES DIRECTORATE                                                                       ,Staff Payment,BA0000288135,135.00,
BIS,The Insolvency Service,10/07/2015,Travel and Subsistence,BUSINESS SERVICES DIRECTORATE                                                                       ,Staff Payment,BA0000288135,3.34,
BIS,The Insolvency Service,10/07/2015,Travel and Subsistence,BUSINESS SERVICES DIRECTORATE                                                                       ,Staff Payment,BA0000288135,76.50,
BIS,The Insolvency Service,10/07/2015,Travel and Subsistence,BUSINESS SERVICES DIRECTORATE                                                                       ,Staff Payment,BA0000288135,40.50,
BIS,The Insolvency Service,10/07/2015,Travel and Subsistence,BUSINESS SERVICES DIRECTORATE                                                                       ,Staff Payment,BA0000288135,8.50,
BIS,The Insolvency Service,10/07/2015,Travel and Subsistence,BUSINESS SERVICES DIRECTORATE                                                                       ,Staff Payment,BA0000288135,357.30,
BIS,The Insolvency Service,10/07/2015,Travel and Subsistence,BUSINESS SERVICES DIRECTORATE                                                                       ,Staff Payment,BA0000288135,107.10,
BIS,The Insolvency Service,10/07/2015,Travel and Subsistence,BUSINESS SERVICES DIRECTORATE                                                                       ,Staff Payment,BA0000288135,53.50,
BIS,The Insolvency Service,10/07/2015,Travel and Subsistence,BUSINESS SERVICES DIRECTORATE                                                                       ,Staff Payment,BA0000288135,197.10,
BIS,The Insolvency Service,10/07/2015,Travel and Subsistence,FINANCE AND COMMERCIAL                                                                              ,Staff Payment,BA0000288135,8.00,
BIS,The Insolvency Service,10/07/2015,Travel and Subsistence,FINANCE AND COMMERCIAL                                                                              ,Staff Payment,BA0000288135,9.90,
BIS,The Insolvency Service,10/07/2015,Travel and Subsistence,INVESTIGATIONS & ENFORCEMENT                                                                        ,Staff Payment,BA0000288135,254.25,
BIS,The Insolvency Service,10/07/2015,Travel and Subsistence,INVESTIGATIONS & ENFORCEMENT                                                                        ,Staff Payment,BA0000288135,8.50,
BIS,The Insolvency Service,10/07/2015,Travel and Subsistence,INVESTIGATIONS & ENFORCEMENT                                                                        ,Staff Payment,BA0000288135,11.25,
BIS,The Insolvency Service,10/07/2015,Travel and Subsistence,INVESTIGATIONS & ENFORCEMENT                                                                        ,Staff Payment,BA0000288135,61.20,
BIS,The Insolvency Service,10/07/2015,Travel and Subsistence,INVESTIGATIONS & ENFORCEMENT                                                                        ,Staff Payment,BA0000288135,1.20,
BIS,The Insolvency Service,10/07/2015,Travel and Subsistence,INVESTIGATIONS & ENFORCEMENT                                                                        ,Staff Payment,BA0000288135,72.00,
BIS,The Insolvency Service,10/07/2015,Travel and Subsistence,INVESTIGATIONS & ENFORCEMENT                                                                        ,Staff Payment,BA0000288135,2.50,
BIS,The Insolvency Service,10/07/2015,Travel and Subsistence,INVESTIGATIONS & ENFORCEMENT                                                                        ,Staff Payment,BA0000288135,43.65,
BIS,The Insolvency Service,10/07/2015,Travel and Subsistence,INVESTIGATIONS & ENFORCEMENT                                                                        ,Staff Payment,BA0000288135,83.70,
BIS,The Insolvency Service,10/07/2015,Travel and Subsistence,INVESTIGATIONS & ENFORCEMENT                                                                        ,Staff Payment,BA0000288135,157.05,
BIS,The Insolvency Service,10/07/2015,Travel and Subsistence,INVESTIGATIONS & ENFORCEMENT                                                                        ,Staff Payment,BA0000288135,384.75,
BIS,The Insolvency Service,10/07/2015,Travel and Subsistence,INVESTIGATIONS & ENFORCEMENT                                                                        ,Staff Payment,BA0000288135,106.65,
BIS,The Insolvency Service,10/07/2015,Travel and Subsistence,INVESTIGATIONS & ENFORCEMENT                                                                        ,Staff Payment,BA0000288135,207.00,
BIS,The Insolvency Service,10/07/2015,Travel and Subsistence,OFFICIAL RECEIVER SERVICES                                                                          ,Staff Payment,BA0000288135,31.50,
BIS,The Insolvency Service,10/07/2015,Travel and Subsistence,OFFICIAL RECEIVER SERVICES                                                                          ,Staff Payment,BA0000288135,6.50,
BIS,The Insolvency Service,10/07/2015,Travel and Subsistence,OFFICIAL RECEIVER SERVICES                                                                          ,Staff Payment,BA0000288135,58.20,
BIS,The Insolvency Service,10/07/2015,Travel and Subsistence,OFFICIAL RECEIVER SERVICES                                                                          ,Staff Payment,BA0000288135,36.00,
BIS,The Insolvency Service,10/07/2015,Travel and Subsistence,OFFICIAL RECEIVER SERVICES                                                                          ,Staff Payment,BA0000288135,5.20,
BIS,The Insolvency Service,10/07/2015,Travel and Subsistence,OFFICIAL RECEIVER SERVICES                                                                          ,Staff Payment,BA0000288135,52.65,
BIS,The Insolvency Service,10/07/2015,Travel and Subsistence,OFFICIAL RECEIVER SERVICES                                                                          ,Staff Payment,BA0000288135,4.70,
BIS,The Insolvency Service,10/07/2015,Travel and Subsistence,OFFICIAL RECEIVER SERVICES                                                                          ,Staff Payment,BA0000288135,20.53,
BIS,The Insolvency Service,10/07/2015,Travel and Subsistence,OFFICIAL RECEIVER SERVICES                                                                          ,Staff Payment,BA0000288135,29.70,
BIS,The Insolvency Service,10/07/2015,Travel and Subsistence,OFFICIAL RECEIVER SERVICES                                                                          ,Staff Payment,BA0000288135,44.50,
BIS,The Insolvency Service,10/07/2015,Travel and Subsistence,OFFICIAL RECEIVER SERVICES                                                                          ,Staff Payment,BA0000288135,8.40,
BIS,The Insolvency Service,10/07/2015,Travel and Subsistence,OFFICIAL RECEIVER SERVICES                                                                          ,Staff Payment,BA0000288135,5.40,
BIS,The Insolvency Service,10/07/2015,Travel and Subsistence,OFFICIAL RECEIVER SERVICES                                                                          ,Staff Payment,BA0000288135,2.70,
BIS,The Insolvency Service,10/07/2015,Travel and Subsistence,OFFICIAL RECEIVER SERVICES                                                                          ,Staff Payment,BA0000288135,2.80,
BIS,The Insolvency Service,10/07/2015,Travel and Subsistence,OFFICIAL RECEIVER SERVICES                                                                          ,Staff Payment,BA0000288135,2.00,
BIS,The Insolvency Service,10/07/2015,Travel and Subsistence,OFFICIAL RECEIVER SERVICES                                                                          ,Staff Payment,BA0000288135,12.60,
BIS,The Insolvency Service,10/07/2015,Travel and Subsistence,OFFICIAL RECEIVER SERVICES                                                                          ,Staff Payment,BA0000288135,73.50,
BIS,The Insolvency Service,10/07/2015,Travel and Subsistence,OFFICIAL RECEIVER SERVICES                                                                          ,Staff Payment,BA0000288135,40.50,
BIS,The Insolvency Service,10/07/2015,Travel and Subsistence,OFFICIAL RECEIVER SERVICES                                                                          ,Staff Payment,BA0000288135,11.70,
BIS,The Insolvency Service,10/07/2015,Travel and Subsistence,OFFICIAL RECEIVER SERVICES                                                                          ,Staff Payment,BA0000288135,23.45,
BIS,The Insolvency Service,10/07/2015,Travel and Subsistence,OFFICIAL RECEIVER SERVICES                                                                          ,Staff Payment,BA0000288135,28.00,
BIS,The Insolvency Service,10/07/2015,Travel and Subsistence,OFFICIAL RECEIVER SERVICES                                                                          ,Staff Payment,BA0000288135,17.10,
BIS,The Insolvency Service,10/07/2015,Travel and Subsistence,OFFICIAL RECEIVER SERVICES                                                                          ,Staff Payment,BA0000288135,3.00,
BIS,The Insolvency Service,10/07/2015,Travel and Subsistence,OFFICIAL RECEIVER SERVICES                                                                          ,Staff Payment,BA0000288135,4.50,
BIS,The Insolvency Service,10/07/2015,Travel and Subsistence,OFFICIAL RECEIVER SERVICES                                                                          ,Staff Payment,BA0000288135,73.80,
BIS,The Insolvency Service,10/07/2015,Travel and Subsistence,OFFICIAL RECEIVER SERVICES                                                                          ,Staff Payment,BA0000288135,44.10,
BIS,The Insolvency Service,10/07/2015,Travel and Subsistence,OFFICIAL RECEIVER SERVICES                                                                          ,Staff Payment,BA0000288135,5.85,
BIS,The Insolvency Service,10/07/2015,Travel and Subsistence,OFFICIAL RECEIVER SERVICES                                                                          ,Staff Payment,BA0000288135,67.50,
BIS,The Insolvency Service,10/07/2015,Travel and Subsistence,OFFICIAL RECEIVER SERVICES                                                                          ,Staff Payment,BA0000288135,32.40,
BIS,The Insolvency Service,10/07/2015,Travel and Subsistence,OFFICIAL RECEIVER SERVICES                                                                          ,Staff Payment,BA0000288135,4.30,
BIS,The Insolvency Service,10/07/2015,Travel and Subsistence,OFFICIAL RECEIVER SERVICES                                                                          ,Staff Payment,BA0000288135,62.55,
BIS,The Insolvency Service,10/07/2015,Travel and Subsistence,PEOPLE & CAPABILITY                                                                                 ,Staff Payment,BA0000288135,11.50,
BIS,The Insolvency Service,10/07/2015,Travel and Subsistence,PEOPLE & CAPABILITY                                                                                 ,Staff Payment,BA0000288135,18.00,
BIS,The Insolvency Service,10/07/2015,Travel and Subsistence,PEOPLE & CAPABILITY                                                                                 ,Staff Payment,BA0000288135,25.65,
BIS,The Insolvency Service,10/07/2015,Travel and Subsistence,PROJECTS                                                                                            ,Staff Payment,BA0000288135,10.00,
BIS,The Insolvency Service,10/07/2015,Travel and Subsistence,BUSINESS SERVICES DIRECTORATE                                                                       ,Staff Payment,BA0000288135,29.00,
BIS,The Insolvency Service,10/07/2015,Travel and Subsistence,BUSINESS SERVICES DIRECTORATE                                                                       ,Staff Payment,BA0000288135,35.00,
BIS,The Insolvency Service,10/07/2015,Travel and Subsistence,FINANCE AND COMMERCIAL                                                                              ,Staff Payment,BA0000288135,40.00,
BIS,The Insolvency Service,10/07/2015,Travel and Subsistence,FINANCE AND COMMERCIAL                                                                              ,Staff Payment,BA0000288135,9.80,
BIS,The Insolvency Service,10/07/2015,Travel and Subsistence,INVESTIGATIONS & ENFORCEMENT                                                                        ,Staff Payment,BA0000288135,9.40,
BIS,The Insolvency Service,10/07/2015,Travel and Subsistence,INVESTIGATIONS & ENFORCEMENT                                                                        ,Staff Payment,BA0000288135,39.20,
BIS,The Insolvency Service,10/07/2015,Travel and Subsistence,INVESTIGATIONS & ENFORCEMENT                                                                        ,Staff Payment,BA0000288135,13.00,
BIS,The Insolvency Service,10/07/2015,Travel and Subsistence,OFFICIAL RECEIVER SERVICES                                                                          ,Staff Payment,BA0000288135,12.00,
BIS,The Insolvency Service,10/07/2015,Travel and Subsistence,OFFICIAL RECEIVER SERVICES                                                                          ,Staff Payment,BA0000288135,15.60,
BIS,The Insolvency Service,10/07/2015,Travel and Subsistence,OFFICIAL RECEIVER SERVICES                                                                          ,Staff Payment,BA0000288135,9.60,
BIS,The Insolvency Service,10/07/2015,Travel and Subsistence,OFFICIAL RECEIVER SERVICES                                                                          ,Staff Payment,BA0000288135,9.00,
BIS,The Insolvency Service,10/07/2015,Travel and Subsistence,PEOPLE & CAPABILITY                                                                                 ,Staff Payment,BA0000288135,13.40,
BIS,The Insolvency Service,10/07/2015,Travel and Subsistence,PEOPLE & CAPABILITY                                                                                 ,Staff Payment,BA0000288135,20.70,
BIS,The Insolvency Service,10/07/2015,Travel and Subsistence,BUSINESS SERVICES DIRECTORATE                                                                       ,Staff Payment,BA0000288135,74.85,
BIS,The Insolvency Service,10/07/2015,Travel and Subsistence,BUSINESS SERVICES DIRECTORATE                                                                       ,Staff Payment,BA0000288135,46.75,
BIS,The Insolvency Service,10/07/2015,Travel and Subsistence,BUSINESS SERVICES DIRECTORATE                                                                       ,Staff Payment,BA0000288135,34.49,
BIS,The Insolvency Service,10/07/2015,Travel and Subsistence,BUSINESS SERVICES DIRECTORATE                                                                       ,Staff Payment,BA0000288135,30.00,
BIS,The Insolvency Service,10/07/2015,Travel and Subsistence,BUSINESS SERVICES DIRECTORATE                                                                       ,Staff Payment,BA0000288135,4.45,
BIS,The Insolvency Service,10/07/2015,Travel and Subsistence,BUSINESS SERVICES DIRECTORATE                                                                       ,Staff Payment,BA0000288135,33.94,
BIS,The Insolvency Service,10/07/2015,Travel and Subsistence,BUSINESS SERVICES DIRECTORATE                                                                       ,Staff Payment,BA0000288135,15.95,
BIS,The Insolvency Service,10/07/2015,Travel and Subsistence,BUSINESS SERVICES DIRECTORATE                                                                       ,Staff Payment,BA0000288135,30.23,
BIS,The Insolvency Service,10/07/2015,Travel and Subsistence,BUSINESS SERVICES DIRECTORATE                                                                       ,Staff Payment,BA0000288135,46.38,
BIS,The Insolvency Service,10/07/2015,Travel and Subsistence,FINANCE AND COMMERCIAL                                                                              ,Staff Payment,BA0000288135,10.00,
BIS,The Insolvency Service,10/07/2015,Travel and Subsistence,FINANCE AND COMMERCIAL                                                                              ,Staff Payment,BA0000288135,4.50,
BIS,The Insolvency Service,10/07/2015,Travel and Subsistence,FINANCE AND COMMERCIAL                                                                              ,Staff Payment,BA0000288135,10.00,
BIS,The Insolvency Service,10/07/2015,Travel and Subsistence,FINANCE AND COMMERCIAL                                                                              ,Staff Payment,BA0000288135,23.25,
BIS,The Insolvency Service,10/07/2015,Travel and Subsistence,FINANCE AND COMMERCIAL                                                                              ,Staff Payment,BA0000288135,34.75,
BIS,The Insolvency Service,10/07/2015,Travel and Subsistence,FINANCE AND COMMERCIAL                                                                              ,Staff Payment,BA0000288135,9.00,
BIS,The Insolvency Service,10/07/2015,Travel and Subsistence,FINANCE AND COMMERCIAL                                                                              ,Staff Payment,BA0000288135,6.50,
BIS,The Insolvency Service,10/07/2015,Travel and Subsistence,FINANCE AND COMMERCIAL                                                                              ,Staff Payment,BA0000288135,49.19,
BIS,The Insolvency Service,10/07/2015,Travel and Subsistence,FINANCE AND COMMERCIAL                                                                              ,Staff Payment,BA0000288135,6.49,
BIS,The Insolvency Service,10/07/2015,Travel and Subsistence,FINANCE AND COMMERCIAL                                                                              ,Staff Payment,BA0000288135,49.90,
BIS,The Insolvency Service,10/07/2015,Travel and Subsistence,INVESTIGATIONS & ENFORCEMENT                                                                        ,Staff Payment,BA0000288135,10.00,
BIS,The Insolvency Service,10/07/2015,Travel and Subsistence,INVESTIGATIONS & ENFORCEMENT                                                                        ,Staff Payment,BA0000288135,3.20,
BIS,The Insolvency Service,10/07/2015,Travel and Subsistence,INVESTIGATIONS & ENFORCEMENT                                                                        ,Staff Payment,BA0000288135,3.55,
BIS,The Insolvency Service,10/07/2015,Travel and Subsistence,INVESTIGATIONS & ENFORCEMENT                                                                        ,Staff Payment,BA0000288135,5.00,
BIS,The Insolvency Service,10/07/2015,Travel and Subsistence,INVESTIGATIONS & ENFORCEMENT                                                                        ,Staff Payment,BA0000288135,5.00,
BIS,The Insolvency Service,10/07/2015,Travel and Subsistence,INVESTIGATIONS & ENFORCEMENT                                                                        ,Staff Payment,BA0000288135,5.00,
BIS,The Insolvency Service,10/07/2015,Travel and Subsistence,INVESTIGATIONS & ENFORCEMENT                                                                        ,Staff Payment,BA0000288135,3.80,
BIS,The Insolvency Service,10/07/2015,Travel and Subsistence,INVESTIGATIONS & ENFORCEMENT                                                                        ,Staff Payment,BA0000288135,5.00,
BIS,The Insolvency Service,10/07/2015,Travel and Subsistence,INVESTIGATIONS & ENFORCEMENT                                                                        ,Staff Payment,BA0000288135,8.35,
BIS,The Insolvency Service,10/07/2015,Travel and Subsistence,INVESTIGATIONS & ENFORCEMENT                                                                        ,Staff Payment,BA0000288135,3.59,
BIS,The Insolvency Service,10/07/2015,Travel and Subsistence,INVESTIGATIONS & ENFORCEMENT                                                                        ,Staff Payment,BA0000288135,8.45,
BIS,The Insolvency Service,10/07/2015,Travel and Subsistence,INVESTIGATIONS & ENFORCEMENT                                                                        ,Staff Payment,BA0000288135,23.99,
BIS,The Insolvency Service,10/07/2015,Travel and Subsistence,INVESTIGATIONS & ENFORCEMENT                                                                        ,Staff Payment,BA0000288135,38.24,
BIS,The Insolvency Service,10/07/2015,Travel and Subsistence,OFFICIAL RECEIVER SERVICES                                                                          ,Staff Payment,BA0000288135,5.00,
BIS,The Insolvency Service,10/07/2015,Travel and Subsistence,OFFICIAL RECEIVER SERVICES                                                                          ,Staff Payment,BA0000288135,1.55,
BIS,The Insolvency Service,10/07/2015,Travel and Subsistence,OFFICIAL RECEIVER SERVICES                                                                          ,Staff Payment,BA0000288135,38.89,
BIS,The Insolvency Service,10/07/2015,Travel and Subsistence,OFFICIAL RECEIVER SERVICES                                                                          ,Staff Payment,BA0000288135,19.69,
BIS,The Insolvency Service,10/07/2015,Travel and Subsistence,OFFICIAL RECEIVER SERVICES                                                                          ,Staff Payment,BA0000288135,17.48,
BIS,The Insolvency Service,10/07/2015,Travel and Subsistence,OFFICIAL RECEIVER SERVICES                                                                          ,Staff Payment,BA0000288135,5.00,
BIS,The Insolvency Service,10/07/2015,Travel and Subsistence,OFFICIAL RECEIVER SERVICES                                                                          ,Staff Payment,BA0000288135,27.68,
BIS,The Insolvency Service,10/07/2015,Travel and Subsistence,OFFICIAL RECEIVER SERVICES                                                                          ,Staff Payment,BA0000288135,2.10,
BIS,The Insolvency Service,10/07/2015,Travel and Subsistence,OFFICIAL RECEIVER SERVICES                                                                          ,Staff Payment,BA0000288135,4.75,
BIS,The Insolvency Service,10/07/2015,Travel and Subsistence,OFFICIAL RECEIVER SERVICES                                                                          ,Staff Payment,BA0000288135,5.00,
BIS,The Insolvency Service,10/07/2015,Travel and Subsistence,OFFICIAL RECEIVER SERVICES                                                                          ,Staff Payment,BA0000288135,24.00,
BIS,The Insolvency Service,10/07/2015,Travel and Subsistence,OFFICIAL RECEIVER SERVICES                                                                          ,Staff Payment,BA0000288135,5.00,
BIS,The Insolvency Service,10/07/2015,Travel and Subsistence,OFFICIAL RECEIVER SERVICES                                                                          ,Staff Payment,BA0000288135,4.99,
BIS,The Insolvency Service,10/07/2015,Travel and Subsistence,OFFICIAL RECEIVER SERVICES                                                                          ,Staff Payment,BA0000288135,3.37,
BIS,The Insolvency Service,10/07/2015,Travel and Subsistence,PEOPLE & CAPABILITY                                                                                 ,Staff Payment,BA0000288135,4.31,
BIS,The Insolvency Service,10/07/2015,Travel and Subsistence,PEOPLE & CAPABILITY                                                                                 ,Staff Payment,BA0000288135,7.10,
BIS,The Insolvency Service,10/07/2015,Travel and Subsistence,PEOPLE & CAPABILITY                                                                                 ,Staff Payment,BA0000288135,5.00,
BIS,The Insolvency Service,10/07/2015,Travel and Subsistence,PEOPLE & CAPABILITY                                                                                 ,Staff Payment,BA0000288135,5.00,
BIS,The Insolvency Service,10/07/2015,Insolvency Case Related Costs,INVESTIGATIONS & ENFORCEMENT                                                                        ,Staff Payment,BA0000288135,13.00,
BIS,The Insolvency Service,10/07/2015,Insolvency Case Related Costs,INVESTIGATIONS & ENFORCEMENT                                                                        ,Staff Payment,BA0000288135,7.00,
BIS,The Insolvency Service,10/07/2015,Employee Related Costs,EXTERNAL AFFAIRS                                                                                    ,Staff Payment,BA0000288135,125.58,
BIS,The Insolvency Service,10/07/2015,Employee Related Costs,PEOPLE & CAPABILITY                                                                                 ,Staff Payment,BA0000288135,148.00,
BIS,The Insolvency Service,10/07/2015,Employee Related Costs,PEOPLE & CAPABILITY                                                                                 ,Staff Payment,BA0000288135,148.00,
BIS,The Insolvency Service,10/07/2015,Employee Related Costs,PEOPLE & CAPABILITY                                                                                 ,Staff Payment,BA0000288135,194.00,
BIS,The Insolvency Service,10/07/2015,Office Supplies and Services,EXTERNAL AFFAIRS                                                                                    ,Staff Payment,BA0000288135,14.97,
BIS,The Insolvency Service,15/07/2015,Insolvency Case Related Costs,OFFICIAL RECEIVER SERVICES                                                                          ,COMPANIES HOUSE,BA0000288103,134.00,GD255
BIS,The Insolvency Service,15/07/2015,Postage,OFFICIAL RECEIVER SERVICES                                                                          ,ROYAL MAIL GROUP LTD,BA0000288144,"1,096.55",243170002
BIS,The Insolvency Service,15/07/2015,Agency Workers,FINANCE AND COMMERCIAL                                                                              ,CAPITA BUSINESS SERVICES LTD,BA0000288145,"7,936.15",618184140
BIS,The Insolvency Service,15/07/2015,Agency Workers,FINANCE AND COMMERCIAL,HUDSON GLOBAL RESOURCES LTD,BA0000288147,"2,247.36",
BIS,The Insolvency Service,15/07/2015,Postage,OFFICIAL RECEIVER SERVICES                                                                          ,ROYAL MAIL GROUP LTD,BA0000288148,"1,272.08",243170002
BIS,The Insolvency Service,15/07/2015,Travel and Subsistence,FINANCE AND COMMERCIAL                                                                              ,Staff Payment,BA0000288150,39.55,
BIS,The Insolvency Service,15/07/2015,Travel and Subsistence,FINANCE AND COMMERCIAL                                                                              ,Staff Payment,BA0000288150,5.85,
BIS,The Insolvency Service,15/07/2015,Travel and Subsistence,INVESTIGATIONS & ENFORCEMENT                                                                        ,Staff Payment,BA0000288150,76.50,
BIS,The Insolvency Service,15/07/2015,Travel and Subsistence,BUSINESS SERVICES DIRECTORATE                                                                       ,Staff Payment,BA0000288150,12.00,
BIS,The Insolvency Service,15/07/2015,Travel and Subsistence,FINANCE AND COMMERCIAL                                                                              ,Staff Payment,BA0000288150,15.00,
BIS,The Insolvency Service,15/07/2015,Travel and Subsistence,BUSINESS SERVICES DIRECTORATE                                                                       ,Staff Payment,BA0000288150,2.70,
BIS,The Insolvency Service,15/07/2015,Travel and Subsistence,FINANCE AND COMMERCIAL                                                                              ,Staff Payment,BA0000288150,24.55,
BIS,The Insolvency Service,15/07/2015,Travel and Subsistence,INVESTIGATIONS & ENFORCEMENT                                                                        ,Staff Payment,BA0000288150,56.00,
BIS,The Insolvency Service,15/07/2015,Travel and Subsistence,FINANCE AND COMMERCIAL                                                                              ,Staff Payment,BA0000288150,4.80,
BIS,The Insolvency Service,15/07/2015,Travel and Subsistence,FINANCE AND COMMERCIAL                                                                              ,Staff Payment,BA0000288150,9.60,
BIS,The Insolvency Service,15/07/2015,Travel and Subsistence,FINANCE AND COMMERCIAL                                                                              ,Staff Payment,BA0000288150,4.60,
BIS,The Insolvency Service,15/07/2015,Travel and Subsistence,FINANCE AND COMMERCIAL                                                                              ,Staff Payment,BA0000288150,7.10,
BIS,The Insolvency Service,15/07/2015,Travel and Subsistence,INVESTIGATIONS & ENFORCEMENT                                                                        ,Staff Payment,BA0000288150,16.85,
BIS,The Insolvency Service,15/07/2015,Travel and Subsistence,INVESTIGATIONS & ENFORCEMENT                                                                        ,Staff Payment,BA0000288150,3.05,
BIS,The Insolvency Service,15/07/2015,Travel and Subsistence,INVESTIGATIONS & ENFORCEMENT                                                                        ,Staff Payment,BA0000288150,3.00,
BIS,The Insolvency Service,15/07/2015,Travel and Subsistence,INVESTIGATIONS & ENFORCEMENT                                                                        ,Staff Payment,BA0000288150,11.50,
BIS,The Insolvency Service,15/07/2015,Travel and Subsistence,INVESTIGATIONS & ENFORCEMENT                                                                        ,Staff Payment,BA0000288150,3.90,
BIS,The Insolvency Service,15/07/2015,Travel and Subsistence,INVESTIGATIONS & ENFORCEMENT                                                                        ,Staff Payment,BA0000288150,3.90,
BIS,The Insolvency Service,15/07/2015,Travel and Subsistence,INVESTIGATIONS & ENFORCEMENT                                                                        ,Staff Payment,BA0000288150,3.90,
BIS,The Insolvency Service,15/07/2015,Travel and Subsistence,OFFICIAL RECEIVER SERVICES                                                                          ,Staff Payment,BA0000288150,9.60,
BIS,The Insolvency Service,15/07/2015,Travel and Subsistence,OFFICIAL RECEIVER SERVICES                                                                          ,Staff Payment,BA0000288150,19.70,
BIS,The Insolvency Service,15/07/2015,Travel and Subsistence,PEOPLE & CAPABILITY                                                                                 ,Staff Payment,BA0000288150,1.50,
BIS,The Insolvency Service,15/07/2015,Travel and Subsistence,BUSINESS SERVICES DIRECTORATE                                                                       ,Staff Payment,BA0000288150,31.20,
BIS,The Insolvency Service,15/07/2015,Travel and Subsistence,BUSINESS SERVICES DIRECTORATE                                                                       ,Staff Payment,BA0000288150,194.40,
BIS,The Insolvency Service,15/07/2015,Travel and Subsistence,BUSINESS SERVICES DIRECTORATE                                                                       ,Staff Payment,BA0000288150,9.90,
BIS,The Insolvency Service,15/07/2015,Travel and Subsistence,BUSINESS SERVICES DIRECTORATE                                                                       ,Staff Payment,BA0000288150,3.00,
BIS,The Insolvency Service,15/07/2015,Travel and Subsistence,BUSINESS SERVICES DIRECTORATE                                                                       ,Staff Payment,BA0000288150,105.75,
BIS,The Insolvency Service,15/07/2015,Travel and Subsistence,BUSINESS SERVICES DIRECTORATE                                                                       ,Staff Payment,BA0000288150,99.90,
BIS,The Insolvency Service,15/07/2015,Travel and Subsistence,FINANCE AND COMMERCIAL                                                                              ,Staff Payment,BA0000288150,15.00,
BIS,The Insolvency Service,15/07/2015,Travel and Subsistence,FINANCE AND COMMERCIAL                                                                              ,Staff Payment,BA0000288150,152.10,
BIS,The Insolvency Service,15/07/2015,Travel and Subsistence,FINANCE AND COMMERCIAL                                                                              ,Staff Payment,BA0000288150,9.30,
BIS,The Insolvency Service,15/07/2015,Travel and Subsistence,FINANCE AND COMMERCIAL                                                                              ,Staff Payment,BA0000288150,3.10,
BIS,The Insolvency Service,15/07/2015,Travel and Subsistence,INVESTIGATIONS & ENFORCEMENT                                                                        ,Staff Payment,BA0000288150,41.40,
BIS,The Insolvency Service,15/07/2015,Travel and Subsistence,INVESTIGATIONS & ENFORCEMENT                                                                        ,Staff Payment,BA0000288150,20.00,
BIS,The Insolvency Service,15/07/2015,Travel and Subsistence,INVESTIGATIONS & ENFORCEMENT                                                                        ,Staff Payment,BA0000288150,141.30,
BIS,The Insolvency Service,15/07/2015,Travel and Subsistence,INVESTIGATIONS & ENFORCEMENT                                                                        ,Staff Payment,BA0000288150,6.50,
BIS,The Insolvency Service,15/07/2015,Travel and Subsistence,INVESTIGATIONS & ENFORCEMENT                                                                        ,Staff Payment,BA0000288150,55.00,
BIS,The Insolvency Service,15/07/2015,Travel and Subsistence,INVESTIGATIONS & ENFORCEMENT                                                                        ,Staff Payment,BA0000288150,3.60,
BIS,The Insolvency Service,15/07/2015,Travel and Subsistence,INVESTIGATIONS & ENFORCEMENT                                                                        ,Staff Payment,BA0000288150,17.56,
BIS,The Insolvency Service,15/07/2015,Travel and Subsistence,INVESTIGATIONS & ENFORCEMENT                                                                        ,Staff Payment,BA0000288150,11.00,
BIS,The Insolvency Service,15/07/2015,Travel and Subsistence,INVESTIGATIONS & ENFORCEMENT                                                                        ,Staff Payment,BA0000288150,50.40,
BIS,The Insolvency Service,15/07/2015,Travel and Subsistence,INVESTIGATIONS & ENFORCEMENT                                                                        ,Staff Payment,BA0000288150,9.00,
BIS,The Insolvency Service,15/07/2015,Travel and Subsistence,INVESTIGATIONS & ENFORCEMENT                                                                        ,Staff Payment,BA0000288150,8.78,
BIS,The Insolvency Service,15/07/2015,Travel and Subsistence,INVESTIGATIONS & ENFORCEMENT                                                                        ,Staff Payment,BA0000288150,12.78,
BIS,The Insolvency Service,15/07/2015,Travel and Subsistence,INVESTIGATIONS & ENFORCEMENT                                                                        ,Staff Payment,BA0000288150,30.10,
BIS,The Insolvency Service,15/07/2015,Travel and Subsistence,INVESTIGATIONS & ENFORCEMENT                                                                        ,Staff Payment,BA0000288150,5.60,
BIS,The Insolvency Service,15/07/2015,Travel and Subsistence,INVESTIGATIONS & ENFORCEMENT                                                                        ,Staff Payment,BA0000288150,11.25,
BIS,The Insolvency Service,15/07/2015,Travel and Subsistence,OFFICIAL RECEIVER SERVICES                                                                          ,Staff Payment,BA0000288150,40.50,
BIS,The Insolvency Service,15/07/2015,Travel and Subsistence,OFFICIAL RECEIVER SERVICES                                                                          ,Staff Payment,BA0000288150,3.70,
BIS,The Insolvency Service,15/07/2015,Travel and Subsistence,OFFICIAL RECEIVER SERVICES                                                                          ,Staff Payment,BA0000288150,42.30,
BIS,The Insolvency Service,15/07/2015,Travel and Subsistence,OFFICIAL RECEIVER SERVICES                                                                          ,Staff Payment,BA0000288150,3.00,
BIS,The Insolvency Service,15/07/2015,Travel and Subsistence,OFFICIAL RECEIVER SERVICES                                                                          ,Staff Payment,BA0000288150,37.35,
BIS,The Insolvency Service,15/07/2015,Travel and Subsistence,OFFICIAL RECEIVER SERVICES                                                                          ,Staff Payment,BA0000288150,3.00,
BIS,The Insolvency Service,15/07/2015,Travel and Subsistence,OFFICIAL RECEIVER SERVICES                                                                          ,Staff Payment,BA0000288150,3.15,
BIS,The Insolvency Service,15/07/2015,Travel and Subsistence,OFFICIAL RECEIVER SERVICES                                                                          ,Staff Payment,BA0000288150,3.60,
BIS,The Insolvency Service,15/07/2015,Travel and Subsistence,OFFICIAL RECEIVER SERVICES                                                                          ,Staff Payment,BA0000288150,4.50,
BIS,The Insolvency Service,15/07/2015,Travel and Subsistence,OFFICIAL RECEIVER SERVICES                                                                          ,Staff Payment,BA0000288150,53.10,
BIS,The Insolvency Service,15/07/2015,Travel and Subsistence,OFFICIAL RECEIVER SERVICES                                                                          ,Staff Payment,BA0000288150,82.45,
BIS,The Insolvency Service,15/07/2015,Travel and Subsistence,OFFICIAL RECEIVER SERVICES                                                                          ,Staff Payment,BA0000288150,4.00,
BIS,The Insolvency Service,15/07/2015,Travel and Subsistence,OFFICIAL RECEIVER SERVICES                                                                          ,Staff Payment,BA0000288150,35.10,
BIS,The Insolvency Service,15/07/2015,Travel and Subsistence,OFFICIAL RECEIVER SERVICES                                                                          ,Staff Payment,BA0000288150,162.90,
BIS,The Insolvency Service,15/07/2015,Travel and Subsistence,PEOPLE & CAPABILITY                                                                                 ,Staff Payment,BA0000288150,8.00,
BIS,The Insolvency Service,15/07/2015,Travel and Subsistence,PEOPLE & CAPABILITY                                                                                 ,Staff Payment,BA0000288150,80.10,
BIS,The Insolvency Service,15/07/2015,Travel and Subsistence,PEOPLE & CAPABILITY                                                                                 ,Staff Payment,BA0000288150,21.00,
BIS,The Insolvency Service,15/07/2015,Travel and Subsistence,PEOPLE & CAPABILITY                                                                                 ,Staff Payment,BA0000288150,142.50,
BIS,The Insolvency Service,15/07/2015,Travel and Subsistence,PEOPLE & CAPABILITY                                                                                 ,Staff Payment,BA0000288150,11.80,
BIS,The Insolvency Service,15/07/2015,Travel and Subsistence,PEOPLE & CAPABILITY                                                                                 ,Staff Payment,BA0000288150,17.00,
BIS,The Insolvency Service,15/07/2015,Travel and Subsistence,PEOPLE & CAPABILITY                                                                                 ,Staff Payment,BA0000288150,149.40,
BIS,The Insolvency Service,15/07/2015,Travel and Subsistence,PEOPLE & CAPABILITY                                                                                 ,Staff Payment,BA0000288150,15.00,
BIS,The Insolvency Service,15/07/2015,Travel and Subsistence,PEOPLE & CAPABILITY                                                                                 ,Staff Payment,BA0000288150,18.00,
BIS,The Insolvency Service,15/07/2015,Travel and Subsistence,FINANCE AND COMMERCIAL                                                                              ,Staff Payment,BA0000288150,20.00,
BIS,The Insolvency Service,15/07/2015,Travel and Subsistence,FINANCE AND COMMERCIAL                                                                              ,Staff Payment,BA0000288150,14.60,
BIS,The Insolvency Service,15/07/2015,Travel and Subsistence,FINANCE AND COMMERCIAL                                                                              ,Staff Payment,BA0000288150,24.20,
BIS,The Insolvency Service,15/07/2015,Travel and Subsistence,INVESTIGATIONS & ENFORCEMENT                                                                        ,Staff Payment,BA0000288150,10.00,
BIS,The Insolvency Service,15/07/2015,Travel and Subsistence,INVESTIGATIONS & ENFORCEMENT                                                                        ,Staff Payment,BA0000288150,18.40,
BIS,The Insolvency Service,15/07/2015,Travel and Subsistence,OFFICIAL RECEIVER SERVICES                                                                          ,Staff Payment,BA0000288150,13.80,
BIS,The Insolvency Service,15/07/2015,Travel and Subsistence,PEOPLE & CAPABILITY                                                                                 ,Staff Payment,BA0000288150,8.00,
BIS,The Insolvency Service,15/07/2015,Travel and Subsistence,BUSINESS SERVICES DIRECTORATE                                                                       ,Staff Payment,BA0000288150,27.14,
BIS,The Insolvency Service,15/07/2015,Travel and Subsistence,BUSINESS SERVICES DIRECTORATE                                                                       ,Staff Payment,BA0000288150,6.24,
BIS,The Insolvency Service,15/07/2015,Travel and Subsistence,BUSINESS SERVICES DIRECTORATE                                                                       ,Staff Payment,BA0000288150,5.00,
BIS,The Insolvency Service,15/07/2015,Travel and Subsistence,BUSINESS SERVICES DIRECTORATE                                                                       ,Staff Payment,BA0000288150,14.40,
BIS,The Insolvency Service,15/07/2015,Travel and Subsistence,BUSINESS SERVICES DIRECTORATE                                                                       ,Staff Payment,BA0000288150,31.15,
BIS,The Insolvency Service,15/07/2015,Travel and Subsistence,BUSINESS SERVICES DIRECTORATE                                                                       ,Staff Payment,BA0000288150,5.00,
BIS,The Insolvency Service,15/07/2015,Travel and Subsistence,BUSINESS SERVICES DIRECTORATE                                                                       ,Staff Payment,BA0000288150,48.95,
BIS,The Insolvency Service,15/07/2015,Travel and Subsistence,BUSINESS SERVICES DIRECTORATE                                                                       ,Staff Payment,BA0000288150,24.39,
BIS,The Insolvency Service,15/07/2015,Travel and Subsistence,FINANCE AND COMMERCIAL                                                                              ,Staff Payment,BA0000288150,4.41,
BIS,The Insolvency Service,15/07/2015,Travel and Subsistence,FINANCE AND COMMERCIAL                                                                              ,Staff Payment,BA0000288150,28.13,
BIS,The Insolvency Service,15/07/2015,Travel and Subsistence,FINANCE AND COMMERCIAL                                                                              ,Staff Payment,BA0000288150,8.65,
BIS,The Insolvency Service,15/07/2015,Travel and Subsistence,FINANCE AND COMMERCIAL                                                                              ,Staff Payment,BA0000288150,25.00,
BIS,The Insolvency Service,15/07/2015,Travel and Subsistence,FINANCE AND COMMERCIAL                                                                              ,Staff Payment,BA0000288150,9.89,
BIS,The Insolvency Service,15/07/2015,Travel and Subsistence,FINANCE AND COMMERCIAL                                                                              ,Staff Payment,BA0000288150,19.90,
BIS,The Insolvency Service,15/07/2015,Travel and Subsistence,FINANCE AND COMMERCIAL                                                                              ,Staff Payment,BA0000288150,16.75,
BIS,The Insolvency Service,15/07/2015,Travel and Subsistence,FINANCE AND COMMERCIAL                                                                              ,Staff Payment,BA0000288150,5.00,
BIS,The Insolvency Service,15/07/2015,Travel and Subsistence,FINANCE AND COMMERCIAL                                                                              ,Staff Payment,BA0000288150,17.75,
BIS,The Insolvency Service,15/07/2015,Travel and Subsistence,FINANCE AND COMMERCIAL                                                                              ,Staff Payment,BA0000288150,9.45,
BIS,The Insolvency Service,15/07/2015,Travel and Subsistence,FINANCE AND COMMERCIAL                                                                              ,Staff Payment,BA0000288150,5.00,
BIS,The Insolvency Service,15/07/2015,Travel and Subsistence,FINANCE AND COMMERCIAL                                                                              ,Staff Payment,BA0000288150,3.54,
BIS,The Insolvency Service,15/07/2015,Travel and Subsistence,FINANCE AND COMMERCIAL                                                                              ,Staff Payment,BA0000288150,4.00,
BIS,The Insolvency Service,15/07/2015,Travel and Subsistence,FINANCE AND COMMERCIAL                                                                              ,Staff Payment,BA0000288150,30.00,
BIS,The Insolvency Service,15/07/2015,Travel and Subsistence,INVESTIGATIONS & ENFORCEMENT                                                                        ,Staff Payment,BA0000288150,10.00,
BIS,The Insolvency Service,15/07/2015,Travel and Subsistence,INVESTIGATIONS & ENFORCEMENT                                                                        ,Staff Payment,BA0000288150,46.09,
BIS,The Insolvency Service,15/07/2015,Travel and Subsistence,INVESTIGATIONS & ENFORCEMENT                                                                        ,Staff Payment,BA0000288150,5.00,
BIS,The Insolvency Service,15/07/2015,Travel and Subsistence,INVESTIGATIONS & ENFORCEMENT                                                                        ,Staff Payment,BA0000288150,5.00,
BIS,The Insolvency Service,15/07/2015,Travel and Subsistence,INVESTIGATIONS & ENFORCEMENT                                                                        ,Staff Payment,BA0000288150,28.93,
BIS,The Insolvency Service,15/07/2015,Travel and Subsistence,INVESTIGATIONS & ENFORCEMENT                                                                        ,Staff Payment,BA0000288150,2.59,
BIS,The Insolvency Service,15/07/2015,Travel and Subsistence,INVESTIGATIONS & ENFORCEMENT                                                                        ,Staff Payment,BA0000288150,4.51,
BIS,The Insolvency Service,15/07/2015,Travel and Subsistence,INVESTIGATIONS & ENFORCEMENT                                                                        ,Staff Payment,BA0000288150,5.00,
BIS,The Insolvency Service,15/07/2015,Travel and Subsistence,INVESTIGATIONS & ENFORCEMENT                                                                        ,Staff Payment,BA0000288150,5.00,
BIS,The Insolvency Service,15/07/2015,Travel and Subsistence,INVESTIGATIONS & ENFORCEMENT                                                                        ,Staff Payment,BA0000288150,3.00,
BIS,The Insolvency Service,15/07/2015,Travel and Subsistence,INVESTIGATIONS & ENFORCEMENT                                                                        ,Staff Payment,BA0000288150,3.00,
BIS,The Insolvency Service,15/07/2015,Travel and Subsistence,INVESTIGATIONS & ENFORCEMENT                                                                        ,Staff Payment,BA0000288150,3.00,
BIS,The Insolvency Service,15/07/2015,Travel and Subsistence,OFFICIAL RECEIVER SERVICES                                                                          ,Staff Payment,BA0000288150,5.00,
BIS,The Insolvency Service,15/07/2015,Travel and Subsistence,OFFICIAL RECEIVER SERVICES                                                                          ,Staff Payment,BA0000288150,3.90,
BIS,The Insolvency Service,15/07/2015,Travel and Subsistence,OFFICIAL RECEIVER SERVICES                                                                          ,Staff Payment,BA0000288150,12.22,
BIS,The Insolvency Service,15/07/2015,Travel and Subsistence,OFFICIAL RECEIVER SERVICES                                                                          ,Staff Payment,BA0000288150,5.00,
BIS,The Insolvency Service,15/07/2015,Travel and Subsistence,OFFICIAL RECEIVER SERVICES                                                                          ,Staff Payment,BA0000288150,4.80,
BIS,The Insolvency Service,15/07/2015,Travel and Subsistence,OFFICIAL RECEIVER SERVICES                                                                          ,Staff Payment,BA0000288150,9.68,
BIS,The Insolvency Service,15/07/2015,Travel and Subsistence,OFFICIAL RECEIVER SERVICES                                                                          ,Staff Payment,BA0000288150,5.00,
BIS,The Insolvency Service,15/07/2015,Travel and Subsistence,OFFICIAL RECEIVER SERVICES                                                                          ,Staff Payment,BA0000288150,39.99,
BIS,The Insolvency Service,15/07/2015,Travel and Subsistence,PEOPLE & CAPABILITY                                                                                 ,Staff Payment,BA0000288150,6.10,
BIS,The Insolvency Service,15/07/2015,Travel and Subsistence,PEOPLE & CAPABILITY                                                                                 ,Staff Payment,BA0000288150,22.25,
BIS,The Insolvency Service,15/07/2015,Travel and Subsistence,PEOPLE & CAPABILITY                                                                                 ,Staff Payment,BA0000288150,16.70,
BIS,The Insolvency Service,15/07/2015,Travel and Subsistence,PEOPLE & CAPABILITY                                                                                 ,Staff Payment,BA0000288150,20.00,
BIS,The Insolvency Service,15/07/2015,Travel and Subsistence,PEOPLE & CAPABILITY                                                                                 ,Staff Payment,BA0000288150,29.62,
BIS,The Insolvency Service,15/07/2015,Travel and Subsistence,PEOPLE & CAPABILITY                                                                                 ,Staff Payment,BA0000288150,8.65,
BIS,The Insolvency Service,15/07/2015,Travel and Subsistence,PEOPLE & CAPABILITY                                                                                 ,Staff Payment,BA0000288150,28.88,
BIS,The Insolvency Service,15/07/2015,Travel and Subsistence,PEOPLE & CAPABILITY                                                                                 ,Staff Payment,BA0000288150,9.44,
BIS,The Insolvency Service,15/07/2015,Travel and Subsistence,PEOPLE & CAPABILITY                                                                                 ,Staff Payment,BA0000288150,30.34,
BIS,The Insolvency Service,15/07/2015,Travel and Subsistence,PEOPLE & CAPABILITY                                                                                 ,Staff Payment,BA0000288150,23.95,
BIS,The Insolvency Service,15/07/2015,Travel and Subsistence,PEOPLE & CAPABILITY                                                                                 ,Staff Payment,BA0000288150,29.60,
BIS,The Insolvency Service,15/07/2015,Insolvency Case Related Costs,INVESTIGATIONS & ENFORCEMENT                                                                        ,Staff Payment,BA0000288150,7.00,
BIS,The Insolvency Service,15/07/2015,Employee Related Costs,OFFICIAL RECEIVER SERVICES                                                                          ,Staff Payment,BA0000288150,11.60,
BIS,The Insolvency Service,15/07/2015,Employee Related Costs,PEOPLE & CAPABILITY                                                                                 ,Staff Payment,BA0000288150,90.00,
BIS,The Insolvency Service,15/07/2015,Training Costs,PEOPLE & CAPABILITY                                                                                 ,Staff Payment,BA0000288150,65.00,
BIS,The Insolvency Service,15/07/2015,Agency Workers,INFORMATION TECHNOLOGY                                                                              ,LA INTERNATIONAL COMPUTER CONSULTANTS LTD,BA0000288152,"12,068.78",
BIS,The Insolvency Service,15/07/2015,Office Supplies and Services,OFFICIAL RECEIVER SERVICES                                                                          ,NEOPOST LIMITED (CONSUMABLES),BA0000288153,95.04,597265489
BIS,The Insolvency Service,15/07/2015,Office Supplies and Services,OFFICIAL RECEIVER SERVICES                                                                          ,NEOPOST LIMITED (CONSUMABLES),BA0000288154,148.79,597265489
BIS,The Insolvency Service,15/07/2015,Training Costs,PEOPLE & CAPABILITY                                                                                 ,CAPITA BUSINESS SERVICES LTD,BA0000288155,522.73,618184140
BIS,The Insolvency Service,15/07/2015,Insolvency Case Related Costs,OFFICIAL RECEIVER SERVICES                                                                          ,COMPANIES HOUSE,BA0000288157,49.00,GD255
BIS,The Insolvency Service,15/07/2015,Insolvency Case Related Costs,OFFICIAL RECEIVER SERVICES                                                                          ,COMPANIES HOUSE,BA0000288158,89.00,GD255
BIS,The Insolvency Service,15/07/2015,Insolvency Case Related Costs,OFFICIAL RECEIVER SERVICES                                                                          ,COMPANIES HOUSE,BA0000288159,12.00,GD255
BIS,The Insolvency Service,15/07/2015,Insolvency Case Related Costs,OFFICIAL RECEIVER SERVICES                                                                          ,COMPANIES HOUSE,BA0000288160,13.00,GD255
BIS,The Insolvency Service,15/07/2015,Insolvency Case Related Costs,PROJECTS                                                                                            ,COMPANIES HOUSE,BA0000288160,6.00,GD255
BIS,The Insolvency Service,15/07/2015,Insolvency Case Related Costs,OFFICIAL RECEIVER SERVICES                                                                          ,COMPANIES HOUSE,BA0000288161,59.00,GD255
BIS,The Insolvency Service,15/07/2015,Postage,FINANCE AND COMMERCIAL                                                                              ,TNT UK LTD,BA0000288162,73.22,354715057
BIS,The Insolvency Service,15/07/2015,Postage,FINANCE AND COMMERCIAL                                                                              ,TNT UK LTD,BA0000288163,67.43,354715057
BIS,The Insolvency Service,15/07/2015,Postage,FINANCE AND COMMERCIAL                                                                              ,TNT UK LTD,BA0000288164,102.51,354715057
BIS,The Insolvency Service,15/07/2015,Insolvency Case Related Costs,OFFICIAL RECEIVER SERVICES                                                                          ,COMPANIES HOUSE,BA0000288165,14.00,GD255
BIS,The Insolvency Service,15/07/2015,Telecoms,OFFICIAL RECEIVER SERVICES                                                                          ,VODAFONE - CABLE & WIRELESS COMMUNICATIONS,BA0000288166,394.88,232303710
BIS,The Insolvency Service,15/07/2015,Insolvency Case Related Costs,OFFICIAL RECEIVER SERVICES                                                                          ,COMPANIES HOUSE,BA0000288167,44.00,GD255
BIS,The Insolvency Service,15/07/2015,Telecoms,BUSINESS SERVICES DIRECTORATE                                                                       ,SYNTEC LTD                                                  ,BA0000288168,387.86,810309963
BIS,The Insolvency Service,15/07/2015,Computer and IT Systems,INFORMATION TECHNOLOGY                                                                              ,NINE TELECOM,BA0000288169,211.44,886132113
BIS,The Insolvency Service,15/07/2015,Computer and IT Systems,INFORMATION TECHNOLOGY                                                                              ,VIRGIN MEDIA BUSINESS,BA0000288170,49.61,591819014
BIS,The Insolvency Service,15/07/2015,Postage,OFFICIAL RECEIVER SERVICES                                                                          ,ABACUS EXPRESS,BA0000288171,14.51,417924146
BIS,The Insolvency Service,15/07/2015,Training Costs,PEOPLE & CAPABILITY                                                                                 ,CAPITA BUSINESS SERVICES LTD,BA0000288172,178.81,618184140
BIS,The Insolvency Service,15/07/2015,Insolvency Case Related Costs,OFFICIAL RECEIVER SERVICES                                                                          ,COMPANIES HOUSE,BA0000288173,78.00,GD255
BIS,The Insolvency Service,15/07/2015,Training Costs,PEOPLE & CAPABILITY                                                                                 ,CAPITA BUSINESS SERVICES LTD,BA0000288174,119.99,618184140
BIS,The Insolvency Service,15/07/2015,Insolvency Case Related Costs,OFFICIAL RECEIVER SERVICES                                                                          ,COMPANIES HOUSE,BA0000288175,51.00,GD255
BIS,The Insolvency Service,15/07/2015,Travel and Subsistence,BUSINESS SERVICES DIRECTORATE                                                                       ,Staff Payment,BA0000288176,14.10,
BIS,The Insolvency Service,15/07/2015,Travel and Subsistence,BUSINESS SERVICES DIRECTORATE                                                                       ,Staff Payment,BA0000288176,9.90,
BIS,The Insolvency Service,15/07/2015,Travel and Subsistence,BUSINESS SERVICES DIRECTORATE                                                                       ,Staff Payment,BA0000288176,43.95,
BIS,The Insolvency Service,15/07/2015,Travel and Subsistence,BUSINESS SERVICES DIRECTORATE                                                                       ,Staff Payment,BA0000288176,53.48,
BIS,The Insolvency Service,15/07/2015,Travel and Subsistence,BUSINESS SERVICES DIRECTORATE                                                                       ,Staff Payment,BA0000288176,1.50,
BIS,The Insolvency Service,15/07/2015,Travel and Subsistence,BUSINESS SERVICES DIRECTORATE                                                                       ,Staff Payment,BA0000288176,3.00,
BIS,The Insolvency Service,15/07/2015,Travel and Subsistence,BUSINESS SERVICES DIRECTORATE                                                                       ,Staff Payment,BA0000288176,71.63,
BIS,The Insolvency Service,15/07/2015,Travel and Subsistence,BUSINESS SERVICES DIRECTORATE                                                                       ,Staff Payment,BA0000288176,50.59,
BIS,The Insolvency Service,15/07/2015,Accommodation,ESTATES,ACENES HOUSE LTD                                            ,BA0000288177,"10,500.00",182696958
BIS,The Insolvency Service,15/07/2015,Accommodation,ESTATES,ACENES HOUSE LTD                                            ,BA0000288177,"2,800.00",182696958
BIS,The Insolvency Service,15/07/2015,Accommodation,ESTATES,JONES LANG LASALLE,BA0000288178,"7,020.00",245894718
BIS,The Insolvency Service,15/07/2015,Accommodation,ESTATES,KINGSTON (SENATE) LTD,BA0000288180,"41,625.60",140357635
BIS,The Insolvency Service,17/07/2015,Accommodation,ESTATES,EXETER CITY COUNCIL,BA0000288182,"3,552.00",
BIS,The Insolvency Service,17/07/2015,Accommodation,ESTATES,EXETER CITY COUNCIL,BA0000288183,"64,583.00",
BIS,The Insolvency Service,17/07/2015,Investigation and Enforcement Costs,INVESTIGATIONS & ENFORCEMENT                                                                        ,THE TREASURY SOLICITOR,BA0000288184,345.60,
BIS,The Insolvency Service,17/07/2015,Postage,INVESTIGATIONS & ENFORCEMENT                                                                        ,TNT UK LTD,BA0000288185,28.78,354715057
BIS,The Insolvency Service,17/07/2015,Postage,INVESTIGATIONS & ENFORCEMENT                                                                        ,TNT UK LTD,BA0000288186,72.09,354715057
BIS,The Insolvency Service,17/07/2015,Postage,INVESTIGATIONS & ENFORCEMENT                                                                        ,TNT UK LTD,BA0000288187,167.10,354715057
BIS,The Insolvency Service,17/07/2015,Investigation and Enforcement Costs,INVESTIGATIONS & ENFORCEMENT                                                                        ,HOWES PERCIVAL,BA0000288189,20.00,119523573
BIS,The Insolvency Service,17/07/2015,Insolvency Case Related Costs,OFFICIAL RECEIVER SERVICES                                                                          ,HPI LTD,BA0000288203,19.33,942407139
BIS,The Insolvency Service,17/07/2015,Insolvency Case Related Costs,OFFICIAL RECEIVER SERVICES                                                                          ,HPI LTD,BA0000288204,63.85,942407139
BIS,The Insolvency Service,17/07/2015,Insolvency Case Related Costs,OFFICIAL RECEIVER SERVICES                                                                          ,HPI LTD,BA0000288205,3.60,942407139
BIS,The Insolvency Service,17/07/2015,Insolvency Case Related Costs,OFFICIAL RECEIVER SERVICES                                                                          ,HPI LTD,BA0000288206,18.00,942407139
BIS,The Insolvency Service,17/07/2015,Insolvency Case Related Costs,OFFICIAL RECEIVER SERVICES                                                                          ,HPI LTD,BA0000288207,7.20,942407139
BIS,The Insolvency Service,17/07/2015,Insolvency Case Related Costs,OFFICIAL RECEIVER SERVICES                                                                          ,HPI LTD,BA0000288208,127.33,942407139
BIS,The Insolvency Service,17/07/2015,Insolvency Case Related Costs,OFFICIAL RECEIVER SERVICES                                                                          ,HPI LTD,BA0000288209,7.20,942407139
BIS,The Insolvency Service,17/07/2015,Office Supplies and Services,OFFICIAL RECEIVER SERVICES                                                                          ,NEOPOST LIMITED (CONSUMABLES),BA0000288210,155.39,597265489
BIS,The Insolvency Service,17/07/2015,Accommodation,ESTATES,NORTHAMPTONSHIRE COUNTY COUNCIL,BA0000288211,301.00,
BIS,The Insolvency Service,17/07/2015,Telecoms,INFORMATION TECHNOLOGY                                                                              ,EE LTD (AIR TIME)                                           ,BA0000288212,180.00,771592016
BIS,The Insolvency Service,17/07/2015,Accommodation,ESTATES,MIDDLESBROUGH COUNCIL                                       ,BA0000288213,334.66,734213854
BIS,The Insolvency Service,17/07/2015,Accommodation,ESTATES,GVA                                                         ,BA0000288214,419.75,657719590
BIS,The Insolvency Service,17/07/2015,Accommodation,ESTATES,GVA                                                         ,BA0000288215,399.69,657719590
BIS,The Insolvency Service,17/07/2015,Accommodation,ESTATES,GVA                                                         ,BA0000288216,391.00,657719590
BIS,The Insolvency Service,17/07/2015,Office Supplies and Services,OFFICIAL RECEIVER SERVICES                                                                          ,NEOPOST LIMITED (CONSUMABLES),BA0000288217,190.08,597265489
BIS,The Insolvency Service,17/07/2015,Postage,OFFICIAL RECEIVER SERVICES                                                                          ,ABACUS EXPRESS,BA0000288218,14.51,417924146
BIS,The Insolvency Service,17/07/2015,Postage,OFFICIAL RECEIVER SERVICES                                                                          ,ABACUS EXPRESS,BA0000288219,10.75,417924146
BIS,The Insolvency Service,17/07/2015,Postage,OFFICIAL RECEIVER SERVICES                                                                          ,ABACUS EXPRESS,BA0000288220,19.89,417924146
BIS,The Insolvency Service,17/07/2015,Accommodation,ESTATES,KINGSTON UPON HULL CITY COUNCIL,BA0000288221,655.00,
BIS,The Insolvency Service,17/07/2015,Accommodation,ESTATES,GVA                                                         ,BA0000288222,438.41,657719590
BIS,The Insolvency Service,17/07/2015,Travel and Subsistence,BUSINESS SERVICES DIRECTORATE                                                                       ,Staff Payment,BA0000288223,58.10,
BIS,The Insolvency Service,17/07/2015,Travel and Subsistence,PEOPLE & CAPABILITY                                                                                 ,Staff Payment,BA0000288223,7.10,
BIS,The Insolvency Service,17/07/2015,Travel and Subsistence,INVESTIGATIONS & ENFORCEMENT                                                                        ,Staff Payment,BA0000288223,62.10,
BIS,The Insolvency Service,17/07/2015,Travel and Subsistence,INVESTIGATIONS & ENFORCEMENT                                                                        ,Staff Payment,BA0000288223,22.50,
BIS,The Insolvency Service,17/07/2015,Travel and Subsistence,OFFICIAL RECEIVER SERVICES                                                                          ,Staff Payment,BA0000288223,10.00,
BIS,The Insolvency Service,17/07/2015,Travel and Subsistence,BUSINESS SERVICES DIRECTORATE                                                                       ,Staff Payment,BA0000288223,76.95,
BIS,The Insolvency Service,17/07/2015,Travel and Subsistence,BUSINESS SERVICES DIRECTORATE                                                                       ,Staff Payment,BA0000288223,20.00,
BIS,The Insolvency Service,17/07/2015,Travel and Subsistence,BUSINESS SERVICES DIRECTORATE                                                                       ,Staff Payment,BA0000288223,76.95,
BIS,The Insolvency Service,17/07/2015,Travel and Subsistence,BUSINESS SERVICES DIRECTORATE                                                                       ,Staff Payment,BA0000288223,9.00,
BIS,The Insolvency Service,17/07/2015,Travel and Subsistence,BUSINESS SERVICES DIRECTORATE                                                                       ,Staff Payment,BA0000288223,96.50,
BIS,The Insolvency Service,17/07/2015,Travel and Subsistence,BUSINESS SERVICES DIRECTORATE                                                                       ,Staff Payment,BA0000288223,8.00,
BIS,The Insolvency Service,17/07/2015,Travel and Subsistence,INVESTIGATIONS & ENFORCEMENT                                                                        ,Staff Payment,BA0000288223,65.70,
BIS,The Insolvency Service,17/07/2015,Travel and Subsistence,INVESTIGATIONS & ENFORCEMENT                                                                        ,Staff Payment,BA0000288223,531.00,
BIS,The Insolvency Service,17/07/2015,Travel and Subsistence,INVESTIGATIONS & ENFORCEMENT                                                                        ,Staff Payment,BA0000288223,112.50,
BIS,The Insolvency Service,17/07/2015,Travel and Subsistence,INVESTIGATIONS & ENFORCEMENT                                                                        ,Staff Payment,BA0000288223,50.40,
BIS,The Insolvency Service,17/07/2015,Travel and Subsistence,INVESTIGATIONS & ENFORCEMENT                                                                        ,Staff Payment,BA0000288223,47.70,
BIS,The Insolvency Service,17/07/2015,Travel and Subsistence,OFFICIAL RECEIVER SERVICES                                                                          ,Staff Payment,BA0000288223,3.40,
BIS,The Insolvency Service,17/07/2015,Travel and Subsistence,OFFICIAL RECEIVER SERVICES                                                                          ,Staff Payment,BA0000288223,27.65,
BIS,The Insolvency Service,17/07/2015,Travel and Subsistence,OFFICIAL RECEIVER SERVICES                                                                          ,Staff Payment,BA0000288223,4.00,
BIS,The Insolvency Service,17/07/2015,Travel and Subsistence,OFFICIAL RECEIVER SERVICES                                                                          ,Staff Payment,BA0000288223,7.65,
BIS,The Insolvency Service,17/07/2015,Travel and Subsistence,OFFICIAL RECEIVER SERVICES                                                                          ,Staff Payment,BA0000288223,38.70,
BIS,The Insolvency Service,17/07/2015,Travel and Subsistence,OFFICIAL RECEIVER SERVICES                                                                          ,Staff Payment,BA0000288223,198.00,
BIS,The Insolvency Service,17/07/2015,Travel and Subsistence,OFFICIAL RECEIVER SERVICES                                                                          ,Staff Payment,BA0000288223,8.60,
BIS,The Insolvency Service,17/07/2015,Travel and Subsistence,OFFICIAL RECEIVER SERVICES                                                                          ,Staff Payment,BA0000288223,3.40,
BIS,The Insolvency Service,17/07/2015,Travel and Subsistence,OFFICIAL RECEIVER SERVICES                                                                          ,Staff Payment,BA0000288223,71.40,
BIS,The Insolvency Service,17/07/2015,Travel and Subsistence,OFFICIAL RECEIVER SERVICES                                                                          ,Staff Payment,BA0000288223,44.10,
BIS,The Insolvency Service,17/07/2015,Travel and Subsistence,OFFICIAL RECEIVER SERVICES                                                                          ,Staff Payment,BA0000288223,5.10,
BIS,The Insolvency Service,17/07/2015,Travel and Subsistence,OFFICIAL RECEIVER SERVICES                                                                          ,Staff Payment,BA0000288223,90.45,
BIS,The Insolvency Service,17/07/2015,Travel and Subsistence,OFFICIAL RECEIVER SERVICES                                                                          ,Staff Payment,BA0000288223,20.70,
BIS,The Insolvency Service,17/07/2015,Travel and Subsistence,OFFICIAL RECEIVER SERVICES                                                                          ,Staff Payment,BA0000288223,2.70,
BIS,The Insolvency Service,17/07/2015,Travel and Subsistence,OFFICIAL RECEIVER SERVICES                                                                          ,Staff Payment,BA0000288223,2.80,
BIS,The Insolvency Service,17/07/2015,Travel and Subsistence,OFFICIAL RECEIVER SERVICES                                                                          ,Staff Payment,BA0000288223,2.80,
BIS,The Insolvency Service,17/07/2015,Travel and Subsistence,OFFICIAL RECEIVER SERVICES                                                                          ,Staff Payment,BA0000288223,4.50,
BIS,The Insolvency Service,17/07/2015,Travel and Subsistence,OFFICIAL RECEIVER SERVICES                                                                          ,Staff Payment,BA0000288223,82.80,
BIS,The Insolvency Service,17/07/2015,Travel and Subsistence,BUSINESS SERVICES DIRECTORATE                                                                       ,Staff Payment,BA0000288223,25.00,
BIS,The Insolvency Service,17/07/2015,Travel and Subsistence,FINANCE AND COMMERCIAL                                                                              ,Staff Payment,BA0000288223,3.60,
BIS,The Insolvency Service,17/07/2015,Travel and Subsistence,INVESTIGATIONS & ENFORCEMENT                                                                        ,Staff Payment,BA0000288223,10.00,
BIS,The Insolvency Service,17/07/2015,Travel and Subsistence,INVESTIGATIONS & ENFORCEMENT                                                                        ,Staff Payment,BA0000288223,10.00,
BIS,The Insolvency Service,17/07/2015,Travel and Subsistence,INVESTIGATIONS & ENFORCEMENT                                                                        ,Staff Payment,BA0000288223,14.00,
BIS,The Insolvency Service,17/07/2015,Travel and Subsistence,BUSINESS SERVICES DIRECTORATE                                                                       ,Staff Payment,BA0000288223,9.38,
BIS,The Insolvency Service,17/07/2015,Travel and Subsistence,BUSINESS SERVICES DIRECTORATE                                                                       ,Staff Payment,BA0000288223,28.97,
BIS,The Insolvency Service,17/07/2015,Travel and Subsistence,BUSINESS SERVICES DIRECTORATE                                                                       ,Staff Payment,BA0000288223,79.18,
BIS,The Insolvency Service,17/07/2015,Travel and Subsistence,BUSINESS SERVICES DIRECTORATE                                                                       ,Staff Payment,BA0000288223,4.74,
BIS,The Insolvency Service,17/07/2015,Travel and Subsistence,FINANCE AND COMMERCIAL                                                                              ,Staff Payment,BA0000288223,24.00,
BIS,The Insolvency Service,17/07/2015,Travel and Subsistence,INVESTIGATIONS & ENFORCEMENT                                                                        ,Staff Payment,BA0000288223,5.00,
BIS,The Insolvency Service,17/07/2015,Travel and Subsistence,INVESTIGATIONS & ENFORCEMENT                                                                        ,Staff Payment,BA0000288223,8.25,
BIS,The Insolvency Service,17/07/2015,Travel and Subsistence,INVESTIGATIONS & ENFORCEMENT                                                                        ,Staff Payment,BA0000288223,104.62,
BIS,The Insolvency Service,17/07/2015,Travel and Subsistence,INVESTIGATIONS & ENFORCEMENT                                                                        ,Staff Payment,BA0000288223,64.89,
BIS,The Insolvency Service,17/07/2015,Travel and Subsistence,INVESTIGATIONS & ENFORCEMENT                                                                        ,Staff Payment,BA0000288223,5.00,
BIS,The Insolvency Service,17/07/2015,Travel and Subsistence,INVESTIGATIONS & ENFORCEMENT                                                                        ,Staff Payment,BA0000288223,23.59,
BIS,The Insolvency Service,17/07/2015,Travel and Subsistence,INVESTIGATIONS & ENFORCEMENT                                                                        ,Staff Payment,BA0000288223,25.15,
BIS,The Insolvency Service,17/07/2015,Travel and Subsistence,INVESTIGATIONS & ENFORCEMENT                                                                        ,Staff Payment,BA0000288223,5.00,
BIS,The Insolvency Service,17/07/2015,Travel and Subsistence,INVESTIGATIONS & ENFORCEMENT                                                                        ,Staff Payment,BA0000288223,23.49,
BIS,The Insolvency Service,17/07/2015,Travel and Subsistence,INVESTIGATIONS & ENFORCEMENT                                                                        ,Staff Payment,BA0000288223,23.65,
BIS,The Insolvency Service,17/07/2015,Travel and Subsistence,INVESTIGATIONS & ENFORCEMENT                                                                        ,Staff Payment,BA0000288223,5.00,
BIS,The Insolvency Service,17/07/2015,Travel and Subsistence,OFFICIAL RECEIVER SERVICES                                                                          ,Staff Payment,BA0000288223,5.00,
BIS,The Insolvency Service,17/07/2015,Travel and Subsistence,OFFICIAL RECEIVER SERVICES                                                                          ,Staff Payment,BA0000288223,4.99,
BIS,The Insolvency Service,17/07/2015,Travel and Subsistence,OFFICIAL RECEIVER SERVICES                                                                          ,Staff Payment,BA0000288223,3.89,
BIS,The Insolvency Service,17/07/2015,Insolvency Case Related Costs,INVESTIGATIONS & ENFORCEMENT                                                                        ,Staff Payment,BA0000288223,5.00,
BIS,The Insolvency Service,17/07/2015,Employee Related Costs,INVESTIGATIONS & ENFORCEMENT                                                                        ,Staff Payment,BA0000288223,105.68,
BIS,The Insolvency Service,17/07/2015,Agency Workers,FINANCE AND COMMERCIAL                                                                              ,2T SECURITY LTD                                             ,BA0000288225,350.76,
BIS,The Insolvency Service,17/07/2015,Agency Workers,FINANCE AND COMMERCIAL                                                                              ,2T SECURITY LTD                                             ,BA0000288225,"3,000.00",
BIS,The Insolvency Service,17/07/2015,Agency Workers,FINANCE AND COMMERCIAL                                                                              ,MICHAEL PAGE INTERNATIONAL RECRUITMENT LTD,BA0000288226,"2,772.00",354259936
BIS,The Insolvency Service,17/07/2015,Agency Workers,FINANCE AND COMMERCIAL                                                                              ,MICHAEL PAGE INTERNATIONAL RECRUITMENT LTD,BA0000288227,"2,772.00",354259936
BIS,The Insolvency Service,17/07/2015,Agency Workers,FINANCE AND COMMERCIAL                                                                              ,MICHAEL PAGE INTERNATIONAL RECRUITMENT LTD,BA0000288228,"1,620.00",354259936
BIS,The Insolvency Service,17/07/2015,Agency Workers,FINANCE AND COMMERCIAL                                                                              ,MICHAEL PAGE INTERNATIONAL RECRUITMENT LTD,BA0000288229,"2,700.00",354259936
BIS,The Insolvency Service,17/07/2015,Agency Workers,FINANCE AND COMMERCIAL                                                                              ,MICHAEL PAGE INTERNATIONAL RECRUITMENT LTD,BA0000288230,"1,663.20",354259936
BIS,The Insolvency Service,17/07/2015,Department for Business Innovation and Skills,PEOPLE & CAPABILITY                                                                                 ,HMRC,BA0000288231,"9,600.00",888848141
BIS,The Insolvency Service,17/07/2015,Accommodation,OFFICIAL RECEIVER SERVICES                                                                          ,LAND REGISTRY TELFORD,BA0000288233,"1,297.34",
BIS,The Insolvency Service,17/07/2015,Postage,BUSINESS SERVICES DIRECTORATE                                                                       ,NEOPOST LTD - FRANKING TOP UPS,BA0000288234,"1,000.00",
BIS,The Insolvency Service,17/07/2015,Postage,INFORMATION TECHNOLOGY                                                                              ,NEOPOST LTD - FRANKING TOP UPS,BA0000288234,"5,000.00",
BIS,The Insolvency Service,17/07/2015,Postage,OFFICIAL RECEIVER SERVICES                                                                          ,NEOPOST LTD - FRANKING TOP UPS,BA0000288234,50.00,
BIS,The Insolvency Service,17/07/2015,Postage,OFFICIAL RECEIVER SERVICES                                                                          ,NEOPOST LTD - FRANKING TOP UPS,BA0000288234,500.00,
BIS,The Insolvency Service,17/07/2015,Postage,OFFICIAL RECEIVER SERVICES                                                                          ,NEOPOST LTD - FRANKING TOP UPS,BA0000288234,500.00,
BIS,The Insolvency Service,17/07/2015,Postage,OFFICIAL RECEIVER SERVICES                                                                          ,NEOPOST LTD - FRANKING TOP UPS,BA0000288234,500.00,
BIS,The Insolvency Service,17/07/2015,Postage,OFFICIAL RECEIVER SERVICES                                                                          ,NEOPOST LTD - FRANKING TOP UPS,BA0000288234,600.00,
BIS,The Insolvency Service,17/07/2015,Postage,OFFICIAL RECEIVER SERVICES                                                                          ,NEOPOST LTD - FRANKING TOP UPS,BA0000288234,"1,000.00",
BIS,The Insolvency Service,17/07/2015,Postage,OFFICIAL RECEIVER SERVICES                                                                          ,NEOPOST LTD - FRANKING TOP UPS,BA0000288234,"1,000.00",
BIS,The Insolvency Service,17/07/2015,Postage,OFFICIAL RECEIVER SERVICES                                                                          ,NEOPOST LTD - FRANKING TOP UPS,BA0000288234,"1,000.00",
BIS,The Insolvency Service,17/07/2015,Accommodation,ESTATES,GVA                                                         ,BA0000288235,"46,156.50",657719590
BIS,The Insolvency Service,17/07/2015,Accommodation,ESTATES,GVA                                                         ,BA0000288235,"17,637.50",657719590
BIS,The Insolvency Service,17/07/2015,Investigation and Enforcement Costs,INVESTIGATIONS & ENFORCEMENT                                                                        ,WRAGGE LAWRENCE GRAHAM  & CO                                ,BA0000288236,"9,263.80",858698838
BIS,The Insolvency Service,17/07/2015,Investigation and Enforcement Costs,INVESTIGATIONS & ENFORCEMENT                                                                        ,WRAGGE LAWRENCE GRAHAM  & CO                                ,BA0000288237,"173,655.68",858698838
BIS,The Insolvency Service,17/07/2015,Investigation and Enforcement Costs,INVESTIGATIONS & ENFORCEMENT                                                                        ,WRAGGE LAWRENCE GRAHAM  & CO                                ,BA0000288238,"42,612.70",858698838
BIS,The Insolvency Service,17/07/2015,Investigation and Enforcement Costs,INVESTIGATIONS & ENFORCEMENT                                                                        ,WRAGGE LAWRENCE GRAHAM  & CO                                ,BA0000288239,"10,975.21",858698838
BIS,The Insolvency Service,17/07/2015,Investigation and Enforcement Costs,INVESTIGATIONS & ENFORCEMENT                                                                        ,WRAGGE LAWRENCE GRAHAM  & CO                                ,BA0000288240,"28,561.88",858698838
BIS,The Insolvency Service,17/07/2015,Investigation and Enforcement Costs,INVESTIGATIONS & ENFORCEMENT                                                                        ,WRAGGE LAWRENCE GRAHAM  & CO                                ,BA0000288240,"1,503.00",858698838
BIS,The Insolvency Service,17/07/2015,Investigation and Enforcement Costs,INVESTIGATIONS & ENFORCEMENT                                                                        ,SHEPHERD & WEDDERBURN WS (ENGLISH CASES)                    ,BA0000288241,"32,560.60",890559386
BIS,The Insolvency Service,17/07/2015,Investigation and Enforcement Costs,INVESTIGATIONS & ENFORCEMENT                                                                        ,SHEPHERD & WEDDERBURN WS (ENGLISH CASES)                    ,BA0000288241,"14,337.57",890559386
BIS,The Insolvency Service,17/07/2015,Investigation and Enforcement Costs,INVESTIGATIONS & ENFORCEMENT                                                                        ,SHEPHERD & WEDDERBURN WS (ENGLISH CASES)                    ,BA0000288241,"1,092.95",890559386
BIS,The Insolvency Service,17/07/2015,Investigation and Enforcement Costs,INVESTIGATIONS & ENFORCEMENT                                                                        ,SHEPHERD & WEDDERBURN WS (ENGLISH CASES)                    ,BA0000288241,"18,981.34",890559386
BIS,The Insolvency Service,17/07/2015,Investigation and Enforcement Costs,INVESTIGATIONS & ENFORCEMENT                                                                        ,HOWES PERCIVAL,BA0000288242,"63,980.91",119523573
BIS,The Insolvency Service,17/07/2015,Investigation and Enforcement Costs,INVESTIGATIONS & ENFORCEMENT                                                                        ,HOWES PERCIVAL,BA0000288243,"7,988.60",119523573
BIS,The Insolvency Service,17/07/2015,Investigation and Enforcement Costs,INVESTIGATIONS & ENFORCEMENT                                                                        ,HOWES PERCIVAL,BA0000288244,"52,665.33",119523573
BIS,The Insolvency Service,17/07/2015,Telecoms,INFORMATION TECHNOLOGY                                                                              ,VODAFONE - CABLE & WIRELESS COMMUNICATIONS,BA0000288245,"3,701.96",232303710
BIS,The Insolvency Service,17/07/2015,Translation Costs,OFFICIAL RECEIVER SERVICES                                                                          ,K INTERNATIONAL PLC,BA0000288246,"1,851.68",600413800
BIS,The Insolvency Service,17/07/2015,Translation Costs,OFFICIAL RECEIVER SERVICES                                                                          ,K INTERNATIONAL PLC,BA0000288247,"1,186.88",600413800
BIS,The Insolvency Service,17/07/2015,Telecoms,INFORMATION TECHNOLOGY                                                                              ,VODAFONE - CABLE & WIRELESS COMMUNICATIONS,BA0000288248,"3,214.20",232303710
BIS,The Insolvency Service,17/07/2015,Agency Workers,FINANCE AND COMMERCIAL,BROOK STREET (UK) LTD,BA0000288249,"49,324.22",
BIS,The Insolvency Service,17/07/2015,Agency Workers,FINANCE AND COMMERCIAL,BROOK STREET (UK) LTD,BA0000288250,"49,379.10",
BIS,The Insolvency Service,17/07/2015,Accommodation,BUSINESS SERVICES DIRECTORATE                                                                       ,IRON MOUNTAIN (UK) LTD,BA0000288251,"1,870.07",607937516
BIS,The Insolvency Service,17/07/2015,Accommodation,EXTERNAL AFFAIRS                                                                                    ,IRON MOUNTAIN (UK) LTD,BA0000288251,163.23,607937516
BIS,The Insolvency Service,17/07/2015,Accommodation,INFORMATION TECHNOLOGY                                                                              ,IRON MOUNTAIN (UK) LTD,BA0000288251,213.53,607937516
BIS,The Insolvency Service,17/07/2015,Accommodation,INVESTIGATIONS & ENFORCEMENT                                                                        ,IRON MOUNTAIN (UK) LTD,BA0000288251,"4,361.94",607937516
BIS,The Insolvency Service,17/07/2015,Accommodation,PEOPLE & CAPABILITY                                                                                 ,IRON MOUNTAIN (UK) LTD,BA0000288251,65.39,607937516
BIS,The Insolvency Service,17/07/2015,Accommodation,CUSTOMER AND COMMUNICATIONS                                                                         ,IRON MOUNTAIN (UK) LTD,BA0000288251,1.26,607937516
BIS,The Insolvency Service,17/07/2015,Accommodation,OFFICIAL RECEIVER SERVICES                                                                          ,IRON MOUNTAIN (UK) LTD,BA0000288251,"18,924.33",607937516
BIS,The Insolvency Service,17/07/2015,Postage,BUSINESS SERVICES DIRECTORATE                                                                       ,NEOPOST LTD - FRANKING TOP UPS,BA0000288252,"1,000.00",
BIS,The Insolvency Service,17/07/2015,Postage,INFORMATION TECHNOLOGY                                                                              ,NEOPOST LTD - FRANKING TOP UPS,BA0000288252,"5,000.00",
BIS,The Insolvency Service,17/07/2015,Postage,OFFICIAL RECEIVER SERVICES                                                                          ,NEOPOST LTD - FRANKING TOP UPS,BA0000288252,450.00,
BIS,The Insolvency Service,17/07/2015,Postage,OFFICIAL RECEIVER SERVICES                                                                          ,NEOPOST LTD - FRANKING TOP UPS,BA0000288252,500.00,
BIS,The Insolvency Service,17/07/2015,Postage,OFFICIAL RECEIVER SERVICES                                                                          ,NEOPOST LTD - FRANKING TOP UPS,BA0000288252,700.00,
BIS,The Insolvency Service,17/07/2015,Postage,OFFICIAL RECEIVER SERVICES                                                                          ,NEOPOST LTD - FRANKING TOP UPS,BA0000288252,950.00,
BIS,The Insolvency Service,17/07/2015,Postage,OFFICIAL RECEIVER SERVICES                                                                          ,NEOPOST LTD - FRANKING TOP UPS,BA0000288252,"1,000.00",
BIS,The Insolvency Service,17/07/2015,Postage,OFFICIAL RECEIVER SERVICES                                                                          ,NEOPOST LTD - FRANKING TOP UPS,BA0000288252,"1,000.00",
BIS,The Insolvency Service,17/07/2015,Postage,BUSINESS SERVICES DIRECTORATE                                                                       ,NEOPOST LTD - FRANKING TOP UPS,BA0000288253,"1,000.00",
BIS,The Insolvency Service,17/07/2015,Postage,OFFICIAL RECEIVER SERVICES                                                                          ,NEOPOST LTD - FRANKING TOP UPS,BA0000288253,300.00,
BIS,The Insolvency Service,17/07/2015,Postage,OFFICIAL RECEIVER SERVICES                                                                          ,NEOPOST LTD - FRANKING TOP UPS,BA0000288253,500.00,
BIS,The Insolvency Service,17/07/2015,Postage,OFFICIAL RECEIVER SERVICES                                                                          ,NEOPOST LTD - FRANKING TOP UPS,BA0000288253,500.00,
BIS,The Insolvency Service,17/07/2015,Postage,OFFICIAL RECEIVER SERVICES                                                                          ,NEOPOST LTD - FRANKING TOP UPS,BA0000288253,"1,000.00",
BIS,The Insolvency Service,17/07/2015,Postage,OFFICIAL RECEIVER SERVICES                                                                          ,NEOPOST LTD - FRANKING TOP UPS,BA0000288253,"1,000.00",
BIS,The Insolvency Service,17/07/2015,Postage,OFFICIAL RECEIVER SERVICES                                                                          ,NEOPOST LTD - FRANKING TOP UPS,BA0000288253,"1,000.00",
BIS,The Insolvency Service,17/07/2015,Computer and IT Systems,PROJECTS                                                                                            ,BANG COMMUNICATIONS                                         ,BA0000288254,"8,748.00",569978254
BIS,The Insolvency Service,17/07/2015,Office Supplies and Services,FINANCE AND COMMERCIAL                                                                              ,BANNER BUSINESS SERVICES Ltd.,BA0000288255,717.90,731860439
BIS,The Insolvency Service,17/07/2015,Office Supplies and Services,FINANCE AND COMMERCIAL                                                                              ,BANNER BUSINESS SERVICES Ltd.,BA0000288255,997.50,731860439
BIS,The Insolvency Service,17/07/2015,Office Supplies and Services,FINANCE AND COMMERCIAL                                                                              ,BANNER BUSINESS SERVICES Ltd.,BA0000288255,"2,580.04",731860439
BIS,The Insolvency Service,17/07/2015,Office Supplies and Services,INVESTIGATIONS & ENFORCEMENT                                                                        ,BANNER BUSINESS SERVICES Ltd.,BA0000288255,48.58,731860439
BIS,The Insolvency Service,17/07/2015,Office Supplies and Services,OFFICIAL RECEIVER SERVICES                                                                          ,BANNER BUSINESS SERVICES Ltd.,BA0000288255,13.20,731860439
BIS,The Insolvency Service,17/07/2015,Office Supplies and Services,OFFICIAL RECEIVER SERVICES                                                                          ,BANNER BUSINESS SERVICES Ltd.,BA0000288255,19.99,731860439
BIS,The Insolvency Service,17/07/2015,Office Supplies and Services,OFFICIAL RECEIVER SERVICES                                                                          ,BANNER BUSINESS SERVICES Ltd.,BA0000288255,34.14,731860439
BIS,The Insolvency Service,17/07/2015,Office Supplies and Services,OFFICIAL RECEIVER SERVICES                                                                          ,BANNER BUSINESS SERVICES Ltd.,BA0000288255,72.30,731860439
BIS,The Insolvency Service,17/07/2015,Office Supplies and Services,OFFICIAL RECEIVER SERVICES                                                                          ,BANNER BUSINESS SERVICES Ltd.,BA0000288255,80.44,731860439
BIS,The Insolvency Service,17/07/2015,Office Supplies and Services,OFFICIAL RECEIVER SERVICES                                                                          ,BANNER BUSINESS SERVICES Ltd.,BA0000288255,94.85,731860439
BIS,The Insolvency Service,17/07/2015,Office Supplies and Services,OFFICIAL RECEIVER SERVICES                                                                          ,BANNER BUSINESS SERVICES Ltd.,BA0000288255,123.08,731860439
BIS,The Insolvency Service,17/07/2015,Office Supplies and Services,OFFICIAL RECEIVER SERVICES                                                                          ,BANNER BUSINESS SERVICES Ltd.,BA0000288255,164.41,731860439
BIS,The Insolvency Service,17/07/2015,Office Supplies and Services,OFFICIAL RECEIVER SERVICES                                                                          ,BANNER BUSINESS SERVICES Ltd.,BA0000288255,166.63,731860439
BIS,The Insolvency Service,17/07/2015,Office Supplies and Services,OFFICIAL RECEIVER SERVICES                                                                          ,BANNER BUSINESS SERVICES Ltd.,BA0000288255,219.97,731860439
BIS,The Insolvency Service,17/07/2015,Office Supplies and Services,OFFICIAL RECEIVER SERVICES                                                                          ,BANNER BUSINESS SERVICES Ltd.,BA0000288255,266.83,731860439
BIS,The Insolvency Service,17/07/2015,Office Supplies and Services,OFFICIAL RECEIVER SERVICES                                                                          ,BANNER BUSINESS SERVICES Ltd.,BA0000288255,710.71,731860439
BIS,The Insolvency Service,17/07/2015,Office Supplies and Services,OFFICIAL RECEIVER SERVICES                                                                          ,BANNER BUSINESS SERVICES Ltd.,BA0000288255,717.14,731860439
BIS,The Insolvency Service,17/07/2015,Office Supplies and Services,OFFICIAL RECEIVER SERVICES                                                                          ,BANNER BUSINESS SERVICES Ltd.,BA0000288255,762.04,731860439
BIS,The Insolvency Service,17/07/2015,Accommodation,FINANCE AND COMMERCIAL                                                                              ,BANNER BUSINESS SERVICES Ltd.,BA0000288256,72.00,731860439
BIS,The Insolvency Service,17/07/2015,Accommodation,FINANCE AND COMMERCIAL                                                                              ,BANNER BUSINESS SERVICES Ltd.,BA0000288256,968.40,731860439
BIS,The Insolvency Service,17/07/2015,Accommodation,OFFICIAL RECEIVER SERVICES                                                                          ,BANNER BUSINESS SERVICES Ltd.,BA0000288256,16.20,731860439
BIS,The Insolvency Service,17/07/2015,Accommodation,OFFICIAL RECEIVER SERVICES                                                                          ,BANNER BUSINESS SERVICES Ltd.,BA0000288256,20.70,731860439
BIS,The Insolvency Service,17/07/2015,Accommodation,OFFICIAL RECEIVER SERVICES                                                                          ,BANNER BUSINESS SERVICES Ltd.,BA0000288256,28.80,731860439
BIS,The Insolvency Service,17/07/2015,Accommodation,OFFICIAL RECEIVER SERVICES                                                                          ,BANNER BUSINESS SERVICES Ltd.,BA0000288256,28.80,731860439
BIS,The Insolvency Service,17/07/2015,Accommodation,OFFICIAL RECEIVER SERVICES                                                                          ,BANNER BUSINESS SERVICES Ltd.,BA0000288256,28.98,731860439
BIS,The Insolvency Service,17/07/2015,Accommodation,OFFICIAL RECEIVER SERVICES                                                                          ,BANNER BUSINESS SERVICES Ltd.,BA0000288256,30.60,731860439
BIS,The Insolvency Service,17/07/2015,Accommodation,OFFICIAL RECEIVER SERVICES                                                                          ,BANNER BUSINESS SERVICES Ltd.,BA0000288256,31.68,731860439
BIS,The Insolvency Service,17/07/2015,Accommodation,OFFICIAL RECEIVER SERVICES                                                                          ,BANNER BUSINESS SERVICES Ltd.,BA0000288256,32.76,731860439
BIS,The Insolvency Service,17/07/2015,Accommodation,OFFICIAL RECEIVER SERVICES                                                                          ,BANNER BUSINESS SERVICES Ltd.,BA0000288256,36.18,731860439
BIS,The Insolvency Service,17/07/2015,Accommodation,OFFICIAL RECEIVER SERVICES                                                                          ,BANNER BUSINESS SERVICES Ltd.,BA0000288256,38.70,731860439
BIS,The Insolvency Service,17/07/2015,Accommodation,OFFICIAL RECEIVER SERVICES                                                                          ,BANNER BUSINESS SERVICES Ltd.,BA0000288256,47.88,731860439
BIS,The Insolvency Service,17/07/2015,Accommodation,OFFICIAL RECEIVER SERVICES                                                                          ,BANNER BUSINESS SERVICES Ltd.,BA0000288256,48.78,731860439
BIS,The Insolvency Service,17/07/2015,Accommodation,OFFICIAL RECEIVER SERVICES                                                                          ,BANNER BUSINESS SERVICES Ltd.,BA0000288256,50.40,731860439
BIS,The Insolvency Service,17/07/2015,Accommodation,OFFICIAL RECEIVER SERVICES                                                                          ,BANNER BUSINESS SERVICES Ltd.,BA0000288256,72.00,731860439
BIS,The Insolvency Service,17/07/2015,Accommodation,OFFICIAL RECEIVER SERVICES                                                                          ,BANNER BUSINESS SERVICES Ltd.,BA0000288256,172.80,731860439
BIS,The Insolvency Service,17/07/2015,Computer and IT Systems,INFORMATION TECHNOLOGY                                                                              ,NORTHGATE INFORMATION SOLUTIONS                             ,BA0000288257,"84,705.73",207588545
BIS,The Insolvency Service,17/07/2015,Computer and IT Systems,INFORMATION TECHNOLOGY                                                                              ,NORTHGATE INFORMATION SOLUTIONS                             ,BA0000288258,"15,898.80",207588545
BIS,The Insolvency Service,17/07/2015,Insolvency Case Related Costs,OFFICIAL RECEIVER SERVICES                                                                          ,PARCELFORCE WORLDWIDE,BA0000288259,363.05,243170002
BIS,The Insolvency Service,17/07/2015,Insolvency Case Related Costs,OFFICIAL RECEIVER SERVICES                                                                          ,TMP (UK) LTD,BA0000288261,186.10,872904502
BIS,The Insolvency Service,17/07/2015,Insolvency Case Related Costs,OFFICIAL RECEIVER SERVICES                                                                          ,TMP (UK) LTD,BA0000288262,178.45,872904502
BIS,The Insolvency Service,17/07/2015,Insolvency Case Related Costs,OFFICIAL RECEIVER SERVICES                                                                          ,TMP (UK) LTD,BA0000288263,492.67,872904502
BIS,The Insolvency Service,17/07/2015,Insolvency Case Related Costs,OFFICIAL RECEIVER SERVICES                                                                          ,TMP (UK) LTD,BA0000288264,321.96,872904502
BIS,The Insolvency Service,17/07/2015,Insolvency Case Related Costs,OFFICIAL RECEIVER SERVICES                                                                          ,TMP (UK) LTD,BA0000288265,287.69,872904502
BIS,The Insolvency Service,17/07/2015,Employee Related Costs,PEOPLE & CAPABILITY                                                                                 ,POSTURITE (UK) LTD.,BA0000288266,313.13,
BIS,The Insolvency Service,17/07/2015,Computer and IT Systems,INFORMATION TECHNOLOGY                                                                              ,NORTHGATE INFORMATION SOLUTIONS                             ,BA0000288267,"15,111.60",207588545
BIS,The Insolvency Service,17/07/2015,Computer and IT Systems,INFORMATION TECHNOLOGY                                                                              ,NINE TELECOM,BA0000288268,114.33,886132113
BIS,The Insolvency Service,17/07/2015,Computer and IT Systems,INFORMATION TECHNOLOGY                                                                              ,NINE TELECOM,BA0000288268,657.86,886132113
BIS,The Insolvency Service,17/07/2015,Computer and IT Systems,INFORMATION TECHNOLOGY                                                                              ,NORTHGATE INFORMATION SOLUTIONS                             ,BA0000288269,154.80,207588545
BIS,The Insolvency Service,17/07/2015,Computer and IT Systems,PROJECTS                                                                                            ,NORTHGATE INFORMATION SOLUTIONS                             ,BA0000288270,"4,542.79",207588545
BIS,The Insolvency Service,17/07/2015,Computer and IT Systems,PROJECTS                                                                                            ,NORTHGATE INFORMATION SOLUTIONS                             ,BA0000288271,-22.72,207588545
BIS,The Insolvency Service,20/07/2015,Insolvency Case Related Costs,OFFICIAL RECEIVER SERVICES                                                                          ,ROYAL MAIL,BA0000288311,"14,400.00",
BIS,The Insolvency Service,20/07/2015,Insolvency Case Related Costs,OFFICIAL RECEIVER SERVICES                                                                          ,ROYAL MAIL,BA0000288312,"10,560.00",
BIS,The Insolvency Service,20/07/2015,Insolvency Case Related Costs,OFFICIAL RECEIVER SERVICES                                                                          ,ROYAL MAIL,BA0000288313,160.00,
BIS,The Insolvency Service,21/07/2015,Conferences,CUSTOMER AND COMMUNICATIONS                                                                         ,HOLIDAY INN WINCHESTER                                      ,BA0000288322,100.00,
BIS,The Insolvency Service,21/07/2015,Conferences,CUSTOMER AND COMMUNICATIONS                                                                         ,KINGS NORTON COACHES                                        ,BA0000288328,550.00,559175311
BIS,The Insolvency Service,21/07/2015,Conferences,CUSTOMER AND COMMUNICATIONS                                                                         ,KINGS NORTON COACHES                                        ,BA0000288329,125.00,559175311
BIS,The Insolvency Service,22/07/2015,Agency Workers,INFORMATION TECHNOLOGY                                                                              ,RE THINK RECRUITMENT SOLUTIONS LTD,BA0000288102,915.64,905139440
BIS,The Insolvency Service,22/07/2015,Insolvency Case Related Costs,OFFICIAL RECEIVER SERVICES                                                                          ,INSOLVENCY SERVICE,BA0000288156,711.60,
BIS,The Insolvency Service,22/07/2015,Accommodation,ESTATES,LAMBERT SMITH HAMPTON,BA0000288325,766.10,
BIS,The Insolvency Service,22/07/2015,Accommodation,ESTATES,MIDDLESBROUGH COUNCIL                                       ,BA0000288326,167.33,734213854
BIS,The Insolvency Service,22/07/2015,Insolvency Case Related Costs,OFFICIAL RECEIVER SERVICES                                                                          ,PARCELFORCE WORLDWIDE,BA0000288327,556.54,243170002
BIS,The Insolvency Service,22/07/2015,Travel and Subsistence,INVESTIGATIONS & ENFORCEMENT                                                                        ,Staff Payment,BA0000288331,76.65,
BIS,The Insolvency Service,22/07/2015,Travel and Subsistence,INVESTIGATIONS & ENFORCEMENT                                                                        ,Staff Payment,BA0000288331,4.00,
BIS,The Insolvency Service,22/07/2015,Travel and Subsistence,PEOPLE & CAPABILITY                                                                                 ,Staff Payment,BA0000288331,5.20,
BIS,The Insolvency Service,22/07/2015,Travel and Subsistence,BUSINESS SERVICES DIRECTORATE                                                                       ,Staff Payment,BA0000288331,3.00,
BIS,The Insolvency Service,22/07/2015,Travel and Subsistence,BUSINESS SERVICES DIRECTORATE                                                                       ,Staff Payment,BA0000288331,40.50,
BIS,The Insolvency Service,22/07/2015,Travel and Subsistence,BUSINESS SERVICES DIRECTORATE                                                                       ,Staff Payment,BA0000288331,3.60,
BIS,The Insolvency Service,22/07/2015,Travel and Subsistence,BUSINESS SERVICES DIRECTORATE                                                                       ,Staff Payment,BA0000288331,31.95,
BIS,The Insolvency Service,22/07/2015,Travel and Subsistence,FINANCE AND COMMERCIAL                                                                              ,Staff Payment,BA0000288331,10.00,
BIS,The Insolvency Service,22/07/2015,Travel and Subsistence,FINANCE AND COMMERCIAL                                                                              ,Staff Payment,BA0000288331,108.45,
BIS,The Insolvency Service,22/07/2015,Travel and Subsistence,INVESTIGATIONS & ENFORCEMENT                                                                        ,Staff Payment,BA0000288331,2.20,
BIS,The Insolvency Service,22/07/2015,Travel and Subsistence,INVESTIGATIONS & ENFORCEMENT                                                                        ,Staff Payment,BA0000288331,16.64,
BIS,The Insolvency Service,22/07/2015,Travel and Subsistence,INVESTIGATIONS & ENFORCEMENT                                                                        ,Staff Payment,BA0000288331,178.20,
BIS,The Insolvency Service,22/07/2015,Travel and Subsistence,OFFICIAL RECEIVER SERVICES                                                                          ,Staff Payment,BA0000288331,29.25,
BIS,The Insolvency Service,22/07/2015,Travel and Subsistence,OFFICIAL RECEIVER SERVICES                                                                          ,Staff Payment,BA0000288331,6.00,
BIS,The Insolvency Service,22/07/2015,Travel and Subsistence,OFFICIAL RECEIVER SERVICES                                                                          ,Staff Payment,BA0000288331,85.50,
BIS,The Insolvency Service,22/07/2015,Travel and Subsistence,OFFICIAL RECEIVER SERVICES                                                                          ,Staff Payment,BA0000288331,44.10,
BIS,The Insolvency Service,22/07/2015,Travel and Subsistence,OFFICIAL RECEIVER SERVICES                                                                          ,Staff Payment,BA0000288331,9.00,
BIS,The Insolvency Service,22/07/2015,Travel and Subsistence,OFFICIAL RECEIVER SERVICES                                                                          ,Staff Payment,BA0000288331,2.00,
BIS,The Insolvency Service,22/07/2015,Travel and Subsistence,OFFICIAL RECEIVER SERVICES                                                                          ,Staff Payment,BA0000288331,9.45,
BIS,The Insolvency Service,22/07/2015,Travel and Subsistence,PEOPLE & CAPABILITY                                                                                 ,Staff Payment,BA0000288331,6.00,
BIS,The Insolvency Service,22/07/2015,Travel and Subsistence,PEOPLE & CAPABILITY                                                                                 ,Staff Payment,BA0000288331,50.00,
BIS,The Insolvency Service,22/07/2015,Travel and Subsistence,PEOPLE & CAPABILITY                                                                                 ,Staff Payment,BA0000288331,79.80,
BIS,The Insolvency Service,22/07/2015,Travel and Subsistence,PEOPLE & CAPABILITY                                                                                 ,Staff Payment,BA0000288331,21.00,
BIS,The Insolvency Service,22/07/2015,Travel and Subsistence,PEOPLE & CAPABILITY                                                                                 ,Staff Payment,BA0000288331,166.90,
BIS,The Insolvency Service,22/07/2015,Travel and Subsistence,INVESTIGATIONS & ENFORCEMENT                                                                        ,Staff Payment,BA0000288331,5.30,
BIS,The Insolvency Service,22/07/2015,Travel and Subsistence,PEOPLE & CAPABILITY                                                                                 ,Staff Payment,BA0000288331,8.00,
BIS,The Insolvency Service,22/07/2015,Travel and Subsistence,BUSINESS SERVICES DIRECTORATE                                                                       ,Staff Payment,BA0000288331,5.00,
BIS,The Insolvency Service,22/07/2015,Travel and Subsistence,BUSINESS SERVICES DIRECTORATE                                                                       ,Staff Payment,BA0000288331,3.00,
BIS,The Insolvency Service,22/07/2015,Travel and Subsistence,BUSINESS SERVICES DIRECTORATE                                                                       ,Staff Payment,BA0000288331,5.00,
BIS,The Insolvency Service,22/07/2015,Travel and Subsistence,FINANCE AND COMMERCIAL                                                                              ,Staff Payment,BA0000288331,4.95,
BIS,The Insolvency Service,22/07/2015,Travel and Subsistence,INVESTIGATIONS & ENFORCEMENT                                                                        ,Staff Payment,BA0000288331,13.64,
BIS,The Insolvency Service,22/07/2015,Travel and Subsistence,INVESTIGATIONS & ENFORCEMENT                                                                        ,Staff Payment,BA0000288331,5.00,
BIS,The Insolvency Service,22/07/2015,Travel and Subsistence,OFFICIAL RECEIVER SERVICES                                                                          ,Staff Payment,BA0000288331,8.77,
BIS,The Insolvency Service,22/07/2015,Travel and Subsistence,PEOPLE & CAPABILITY                                                                                 ,Staff Payment,BA0000288331,10.00,
BIS,The Insolvency Service,22/07/2015,Travel and Subsistence,PEOPLE & CAPABILITY                                                                                 ,Staff Payment,BA0000288331,26.30,
BIS,The Insolvency Service,22/07/2015,Training Costs,PEOPLE & CAPABILITY                                                                                 ,Staff Payment,BA0000288331,35.00,
BIS,The Insolvency Service,22/07/2015,Office Supplies and Services,PEOPLE & CAPABILITY                                                                                 ,Staff Payment,BA0000288331,59.40,
BIS,The Insolvency Service,22/07/2015,Travel and Subsistence,INFORMATION TECHNOLOGY                                                                              ,Staff Payment,BA0000288332,30.00,
BIS,The Insolvency Service,22/07/2015,Travel and Subsistence,BUSINESS SERVICES DIRECTORATE                                                                       ,Staff Payment,BA0000288332,10.80,
BIS,The Insolvency Service,22/07/2015,Travel and Subsistence,FINANCE AND COMMERCIAL                                                                              ,Staff Payment,BA0000288332,12.00,
BIS,The Insolvency Service,22/07/2015,Travel and Subsistence,INFORMATION TECHNOLOGY                                                                              ,Staff Payment,BA0000288332,16.00,
BIS,The Insolvency Service,22/07/2015,Travel and Subsistence,INFORMATION TECHNOLOGY                                                                              ,Staff Payment,BA0000288332,108.00,
BIS,The Insolvency Service,22/07/2015,Travel and Subsistence,INFORMATION TECHNOLOGY                                                                              ,Staff Payment,BA0000288332,16.00,
BIS,The Insolvency Service,22/07/2015,Travel and Subsistence,INVESTIGATIONS & ENFORCEMENT                                                                        ,Staff Payment,BA0000288332,21.50,
BIS,The Insolvency Service,22/07/2015,Travel and Subsistence,INVESTIGATIONS & ENFORCEMENT                                                                        ,Staff Payment,BA0000288332,68.25,
BIS,The Insolvency Service,22/07/2015,Travel and Subsistence,OFFICIAL RECEIVER SERVICES                                                                          ,Staff Payment,BA0000288332,2.00,
BIS,The Insolvency Service,22/07/2015,Travel and Subsistence,OFFICIAL RECEIVER SERVICES                                                                          ,Staff Payment,BA0000288332,40.50,
BIS,The Insolvency Service,22/07/2015,Travel and Subsistence,OFFICIAL RECEIVER SERVICES                                                                          ,Staff Payment,BA0000288332,4.00,
BIS,The Insolvency Service,22/07/2015,Travel and Subsistence,OFFICIAL RECEIVER SERVICES                                                                          ,Staff Payment,BA0000288332,4.00,
BIS,The Insolvency Service,22/07/2015,Travel and Subsistence,FINANCE AND COMMERCIAL                                                                              ,Staff Payment,BA0000288332,10.00,
BIS,The Insolvency Service,22/07/2015,Travel and Subsistence,INFORMATION TECHNOLOGY                                                                              ,Staff Payment,BA0000288332,10.00,
BIS,The Insolvency Service,22/07/2015,Travel and Subsistence,INFORMATION TECHNOLOGY                                                                              ,Staff Payment,BA0000288332,11.90,
BIS,The Insolvency Service,22/07/2015,Travel and Subsistence,PEOPLE & CAPABILITY                                                                                 ,Staff Payment,BA0000288332,8.00,
BIS,The Insolvency Service,22/07/2015,Travel and Subsistence,FINANCE AND COMMERCIAL                                                                              ,Staff Payment,BA0000288332,9.65,
BIS,The Insolvency Service,22/07/2015,Travel and Subsistence,FINANCE AND COMMERCIAL                                                                              ,Staff Payment,BA0000288332,27.34,
BIS,The Insolvency Service,22/07/2015,Travel and Subsistence,FINANCE AND COMMERCIAL                                                                              ,Staff Payment,BA0000288332,14.45,
BIS,The Insolvency Service,22/07/2015,Travel and Subsistence,INFORMATION TECHNOLOGY                                                                              ,Staff Payment,BA0000288332,10.00,
BIS,The Insolvency Service,22/07/2015,Travel and Subsistence,INFORMATION TECHNOLOGY                                                                              ,Staff Payment,BA0000288332,10.00,
BIS,The Insolvency Service,22/07/2015,Travel and Subsistence,OFFICIAL RECEIVER SERVICES                                                                          ,Staff Payment,BA0000288332,3.67,
BIS,The Insolvency Service,22/07/2015,Travel and Subsistence,OFFICIAL RECEIVER SERVICES                                                                          ,Staff Payment,BA0000288332,4.95,
BIS,The Insolvency Service,22/07/2015,Travel and Subsistence,OFFICIAL RECEIVER SERVICES                                                                          ,Staff Payment,BA0000288332,5.00,
BIS,The Insolvency Service,22/07/2015,Travel and Subsistence,PEOPLE & CAPABILITY                                                                                 ,Staff Payment,BA0000288332,9.90,
BIS,The Insolvency Service,22/07/2015,Employee Related Costs,OFFICIAL RECEIVER SERVICES                                                                          ,Staff Payment,BA0000288332,144.00,
BIS,The Insolvency Service,22/07/2015,Travel and Subsistence,OFFICIAL RECEIVER SERVICES                                                                          ,Staff Payment,BA0000288333,23.85,
BIS,The Insolvency Service,22/07/2015,Travel and Subsistence,OFFICIAL RECEIVER SERVICES                                                                          ,Staff Payment,BA0000288333,23.85,
BIS,The Insolvency Service,22/07/2015,Travel and Subsistence,OFFICIAL RECEIVER SERVICES                                                                          ,Staff Payment,BA0000288333,23.85,
BIS,The Insolvency Service,22/07/2015,Travel and Subsistence,OFFICIAL RECEIVER SERVICES                                                                          ,Staff Payment,BA0000288333,23.85,
BIS,The Insolvency Service,22/07/2015,Travel and Subsistence,FINANCE AND COMMERCIAL                                                                              ,Staff Payment,BA0000288333,7.20,
BIS,The Insolvency Service,22/07/2015,Travel and Subsistence,FINANCE AND COMMERCIAL                                                                              ,Staff Payment,BA0000288333,93.60,
BIS,The Insolvency Service,22/07/2015,Travel and Subsistence,FINANCE AND COMMERCIAL                                                                              ,Staff Payment,BA0000288333,8.60,
BIS,The Insolvency Service,22/07/2015,Travel and Subsistence,INVESTIGATIONS & ENFORCEMENT                                                                        ,Staff Payment,BA0000288333,42.40,
BIS,The Insolvency Service,22/07/2015,Travel and Subsistence,INVESTIGATIONS & ENFORCEMENT                                                                        ,Staff Payment,BA0000288333,3.00,
BIS,The Insolvency Service,22/07/2015,Travel and Subsistence,INVESTIGATIONS & ENFORCEMENT                                                                        ,Staff Payment,BA0000288333,4.60,
BIS,The Insolvency Service,22/07/2015,Travel and Subsistence,INVESTIGATIONS & ENFORCEMENT                                                                        ,Staff Payment,BA0000288333,4.60,
BIS,The Insolvency Service,22/07/2015,Travel and Subsistence,INVESTIGATIONS & ENFORCEMENT                                                                        ,Staff Payment,BA0000288333,9.60,
BIS,The Insolvency Service,22/07/2015,Travel and Subsistence,INVESTIGATIONS & ENFORCEMENT                                                                        ,Staff Payment,BA0000288333,9.60,
BIS,The Insolvency Service,22/07/2015,Travel and Subsistence,INVESTIGATIONS & ENFORCEMENT                                                                        ,Staff Payment,BA0000288333,33.30,
BIS,The Insolvency Service,22/07/2015,Travel and Subsistence,PEOPLE & CAPABILITY                                                                                 ,Staff Payment,BA0000288333,7.50,
BIS,The Insolvency Service,22/07/2015,Travel and Subsistence,BUSINESS SERVICES DIRECTORATE                                                                       ,Staff Payment,BA0000288333,30.30,
BIS,The Insolvency Service,22/07/2015,Travel and Subsistence,BUSINESS SERVICES DIRECTORATE                                                                       ,Staff Payment,BA0000288333,135.00,
BIS,The Insolvency Service,22/07/2015,Travel and Subsistence,FINANCE AND COMMERCIAL                                                                              ,Staff Payment,BA0000288333,2.50,
BIS,The Insolvency Service,22/07/2015,Travel and Subsistence,FINANCE AND COMMERCIAL                                                                              ,Staff Payment,BA0000288333,6.30,
BIS,The Insolvency Service,22/07/2015,Travel and Subsistence,FINANCE AND COMMERCIAL                                                                              ,Staff Payment,BA0000288333,9.50,
BIS,The Insolvency Service,22/07/2015,Travel and Subsistence,FINANCE AND COMMERCIAL                                                                              ,Staff Payment,BA0000288333,12.00,
BIS,The Insolvency Service,22/07/2015,Travel and Subsistence,INVESTIGATIONS & ENFORCEMENT                                                                        ,Staff Payment,BA0000288333,95.40,
BIS,The Insolvency Service,22/07/2015,Travel and Subsistence,INVESTIGATIONS & ENFORCEMENT                                                                        ,Staff Payment,BA0000288333,73.15,
BIS,The Insolvency Service,22/07/2015,Travel and Subsistence,INVESTIGATIONS & ENFORCEMENT                                                                        ,Staff Payment,BA0000288333,24.30,
BIS,The Insolvency Service,22/07/2015,Travel and Subsistence,INVESTIGATIONS & ENFORCEMENT                                                                        ,Staff Payment,BA0000288333,128.70,
BIS,The Insolvency Service,22/07/2015,Travel and Subsistence,INVESTIGATIONS & ENFORCEMENT                                                                        ,Staff Payment,BA0000288333,103.95,
BIS,The Insolvency Service,22/07/2015,Travel and Subsistence,OFFICIAL RECEIVER SERVICES                                                                          ,Staff Payment,BA0000288333,1.60,
BIS,The Insolvency Service,22/07/2015,Travel and Subsistence,OFFICIAL RECEIVER SERVICES                                                                          ,Staff Payment,BA0000288333,57.15,
BIS,The Insolvency Service,22/07/2015,Travel and Subsistence,BUSINESS SERVICES DIRECTORATE                                                                       ,Staff Payment,BA0000288333,59.80,
BIS,The Insolvency Service,22/07/2015,Travel and Subsistence,FINANCE AND COMMERCIAL                                                                              ,Staff Payment,BA0000288333,24.50,
BIS,The Insolvency Service,22/07/2015,Travel and Subsistence,FINANCE AND COMMERCIAL                                                                              ,Staff Payment,BA0000288333,3.15,
BIS,The Insolvency Service,22/07/2015,Travel and Subsistence,FINANCE AND COMMERCIAL                                                                              ,Staff Payment,BA0000288333,28.05,
BIS,The Insolvency Service,22/07/2015,Travel and Subsistence,FINANCE AND COMMERCIAL                                                                              ,Staff Payment,BA0000288333,3.35,
BIS,The Insolvency Service,22/07/2015,Travel and Subsistence,FINANCE AND COMMERCIAL                                                                              ,Staff Payment,BA0000288333,3.00,
BIS,The Insolvency Service,22/07/2015,Travel and Subsistence,FINANCE AND COMMERCIAL                                                                              ,Staff Payment,BA0000288333,12.89,
BIS,The Insolvency Service,22/07/2015,Travel and Subsistence,FINANCE AND COMMERCIAL                                                                              ,Staff Payment,BA0000288333,4.50,
BIS,The Insolvency Service,22/07/2015,Travel and Subsistence,FINANCE AND COMMERCIAL                                                                              ,Staff Payment,BA0000288333,9.55,
BIS,The Insolvency Service,22/07/2015,Travel and Subsistence,INVESTIGATIONS & ENFORCEMENT                                                                        ,Staff Payment,BA0000288333,41.03,
BIS,The Insolvency Service,22/07/2015,Travel and Subsistence,INVESTIGATIONS & ENFORCEMENT                                                                        ,Staff Payment,BA0000288333,18.99,
BIS,The Insolvency Service,22/07/2015,Travel and Subsistence,INVESTIGATIONS & ENFORCEMENT                                                                        ,Staff Payment,BA0000288333,5.00,
BIS,The Insolvency Service,22/07/2015,Travel and Subsistence,INVESTIGATIONS & ENFORCEMENT                                                                        ,Staff Payment,BA0000288333,31.47,
BIS,The Insolvency Service,22/07/2015,Travel and Subsistence,OFFICIAL RECEIVER SERVICES                                                                          ,Staff Payment,BA0000288333,42.59,
BIS,The Insolvency Service,22/07/2015,Travel and Subsistence,PEOPLE & CAPABILITY                                                                                 ,Staff Payment,BA0000288333,3.00,
BIS,The Insolvency Service,22/07/2015,Travel and Subsistence,FINANCE AND COMMERCIAL,Staff Payment,BA0000288334,10.00,
BIS,The Insolvency Service,22/07/2015,Travel and Subsistence,FINANCE AND COMMERCIAL                                                                              ,Staff Payment,BA0000288334,16.00,
BIS,The Insolvency Service,22/07/2015,Travel and Subsistence,INFORMATION TECHNOLOGY                                                                              ,Staff Payment,BA0000288334,17.50,
BIS,The Insolvency Service,22/07/2015,Travel and Subsistence,FINANCE AND COMMERCIAL,Staff Payment,BA0000288334,46.00,
BIS,The Insolvency Service,22/07/2015,Travel and Subsistence,FINANCE AND COMMERCIAL,Staff Payment,BA0000288334,14.67,
BIS,The Insolvency Service,22/07/2015,Travel and Subsistence,FINANCE AND COMMERCIAL                                                                              ,Staff Payment,BA0000288334,23.00,
BIS,The Insolvency Service,22/07/2015,Travel and Subsistence,INFORMATION TECHNOLOGY                                                                              ,Staff Payment,BA0000288334,5.00,
BIS,The Insolvency Service,22/07/2015,Travel and Subsistence,ESTATES,Staff Payment,BA0000288334,36.50,
BIS,The Insolvency Service,22/07/2015,Travel and Subsistence,INFORMATION TECHNOLOGY                                                                              ,Staff Payment,BA0000288334,53.70,
BIS,The Insolvency Service,22/07/2015,Travel and Subsistence,BUSINESS SERVICES DIRECTORATE                                                                       ,Staff Payment,BA0000288334,11.70,
BIS,The Insolvency Service,22/07/2015,Travel and Subsistence,BUSINESS SERVICES DIRECTORATE                                                                       ,Staff Payment,BA0000288334,13.00,
BIS,The Insolvency Service,22/07/2015,Travel and Subsistence,INVESTIGATIONS & ENFORCEMENT                                                                        ,Staff Payment,BA0000288334,7.00,
BIS,The Insolvency Service,22/07/2015,Travel and Subsistence,INVESTIGATIONS & ENFORCEMENT                                                                        ,Staff Payment,BA0000288334,36.90,
BIS,The Insolvency Service,22/07/2015,Travel and Subsistence,INVESTIGATIONS & ENFORCEMENT                                                                        ,Staff Payment,BA0000288334,3.60,
BIS,The Insolvency Service,22/07/2015,Travel and Subsistence,OFFICIAL RECEIVER SERVICES                                                                          ,Staff Payment,BA0000288334,20.70,
BIS,The Insolvency Service,22/07/2015,Travel and Subsistence,OFFICIAL RECEIVER SERVICES                                                                          ,Staff Payment,BA0000288334,3.70,
BIS,The Insolvency Service,22/07/2015,Travel and Subsistence,OFFICIAL RECEIVER SERVICES                                                                          ,Staff Payment,BA0000288334,9.00,
BIS,The Insolvency Service,22/07/2015,Travel and Subsistence,OFFICIAL RECEIVER SERVICES                                                                          ,Staff Payment,BA0000288334,40.95,
BIS,The Insolvency Service,22/07/2015,Travel and Subsistence,OFFICIAL RECEIVER SERVICES                                                                          ,Staff Payment,BA0000288334,43.65,
BIS,The Insolvency Service,22/07/2015,Travel and Subsistence,PEOPLE & CAPABILITY                                                                                 ,Staff Payment,BA0000288334,25.65,
BIS,The Insolvency Service,22/07/2015,Travel and Subsistence,ESTATES,Staff Payment,BA0000288334,21.00,
BIS,The Insolvency Service,22/07/2015,Travel and Subsistence,OFFICIAL RECEIVER SERVICES                                                                          ,Staff Payment,BA0000288334,4.80,
BIS,The Insolvency Service,22/07/2015,Travel and Subsistence,OFFICIAL RECEIVER SERVICES                                                                          ,Staff Payment,BA0000288334,12.80,
BIS,The Insolvency Service,22/07/2015,Travel and Subsistence,BUSINESS SERVICES DIRECTORATE                                                                       ,Staff Payment,BA0000288334,28.92,
BIS,The Insolvency Service,22/07/2015,Travel and Subsistence,BUSINESS SERVICES DIRECTORATE                                                                       ,Staff Payment,BA0000288334,35.00,
BIS,The Insolvency Service,22/07/2015,Travel and Subsistence,FINANCE AND COMMERCIAL                                                                              ,Staff Payment,BA0000288334,33.80,
BIS,The Insolvency Service,22/07/2015,Travel and Subsistence,FINANCE AND COMMERCIAL                                                                              ,Staff Payment,BA0000288334,19.95,
BIS,The Insolvency Service,22/07/2015,Travel and Subsistence,INFORMATION TECHNOLOGY                                                                              ,Staff Payment,BA0000288334,5.00,
BIS,The Insolvency Service,22/07/2015,Travel and Subsistence,INVESTIGATIONS & ENFORCEMENT                                                                        ,Staff Payment,BA0000288334,5.00,
BIS,The Insolvency Service,22/07/2015,Travel and Subsistence,INVESTIGATIONS & ENFORCEMENT                                                                        ,Staff Payment,BA0000288334,6.50,
BIS,The Insolvency Service,22/07/2015,Travel and Subsistence,OFFICIAL RECEIVER SERVICES                                                                          ,Staff Payment,BA0000288334,45.00,
